{"text_format":"1","workbook":"xlsx","n_sheets":6,"sheets":["説明","基本情報登録","喪失者情報入力","健保正","健保副","年金正"],"not_rendered":{"charts":0,"images":1,"macros":1,"external_links":0,"defined_names":0,"comments":0,"pivot_tables":0},"unopened":[],"bounds":{"document_bytes":16777216,"sheet_cells":100000,"rows_first":2000,"rows_last":500,"rows_between":2000,"halvings":0,"cell_chars":16384,"cell_head_chars":4096},"cells_cut":0,"cells_raw":0,"read":"whole","date_system":"1900"}

{"sheet":"説明","index":0,"n_rows":11,"n_cols":3,"rows_kept":11,"cut":false,"hidden":false,"merged":[]}
[]
["１．","シート「基本情報登録」で事業所の基本情報を入力してください。"]
["２．","シート「喪失者情報入力」で、入力欄を備考を参考に入力してください。"]
[null,"下に進めば４人まで入力できます。"]
[null,"１人目のところには記入例をのせているので、クリアして入力するか、上書きしてください"]
["３．","入力欄は漢字入力等は自動でオン・オフします。"]
["４．","数値のみを入力する欄は日本語入力がオフになっています。"]
[null,null,"欄は必須項目です。"]
[null,null,"欄は該当する場合入力して下さい。"]
["５．","入力が終わったらシート「喪失者情報入力」の［印刷］ボタンを押してください。"]
[null,"シート「健保正」・「健保副」・「年金正」の3枚が印刷されます。"]

{"sheet":"基本情報登録","index":1,"n_rows":11,"n_cols":5,"rows_kept":11,"cut":false,"hidden":false,"merged":[[6,4,6,11],[7,4,7,11],[8,4,8,11],[9,4,9,11],[10,4,10,11],[5,4,5,11],[1,4,1,11],[2,1,3,1],[2,4,2,11],[3,4,3,11],[4,4,4,11]]}
[]
[null,"提出年月日",{"$f":"TODAY()","v":"2022-11-02"},null,"TODAY関数が入力されています。提出日を変更する場合のみ入力してください。"]
[null,"年金整理記号","南",null,"社保記号の「南」、「北」、「豊中」を入力してください。"]
[null,null,"ＷＥＤ",null,"社保記号の「ＷＥＤ」、「ＳＦＨ」を入力してください"]
[null,"年金納入告知書番号",null,null,"「00687」のように必ず５ケタの数字を入力してください。"]
[null,"健康保険記号","532",null,"健康保険の記号を入力してください。"]
[null,"郵便番号","542-0066",null,"「542-0066」と－（ハイフン）を入力してください。"]
[null,"事業所所在地","大阪府大阪市中央区瓦屋町2-3-1",null,"住所が長い場合は、Alt+Enterで折り返してください。"]
[null,"事業所名称","大阪自動車整備健康保険組合",null,"事業所名を入力してください。"]
[null,"事業主氏名","理事長　健保　太郎",null,"代表者名を入力してください。"]
[null,"電話番号","06-6762-6371",null,"「06-6762-6371」と－（ハイフン)を入力してください。"]

{"sheet":"喪失者情報入力","index":2,"n_rows":146,"n_cols":8,"rows_kept":146,"cut":false,"hidden":false,"merged":[[128,0,145,0],[138,1,139,1],[140,1,141,1],[1,1,1,2],[2,0,19,0],[12,1,13,1],[14,1,15,1],[44,0,61,0],[54,1,55,1],[56,1,57,1],[86,0,103,0],[96,1,97,1],[98,1,99,1]]}
[]
[null,"入力項目",null,"入力欄","備考"]
[1,"健保番号","必須","1045","資格喪失者の番号を入力"]
[null,"氏名(漢字)","必須","健保　三朗","氏名（漢字）を入力　姓と名の間にスペースを入れてください。"]
[null,"氏名(ﾌﾘｶﾞﾅ)","必須","ケンポ　サブロウ","フリガナを入力　姓と名の間にスペースを入れてください。",null,4,"退職等"]
[null,"生年月日","必須","1953-03-15","「H7.1.1」のように和暦で入力して下さい。",null,5,"死亡"]
[null,"個人番号","必須","123456789012","個人番号(マイナンバー)12桁を入力",null,7,"75歳到達（健康保険のみ喪失）"]
[null,"基礎年金番号",null,null,"個人番号を入力した場合は不要です。",null,9,"障害認定（健康保険のみ喪失）"]
[null,"喪失理由","必須",4,"４．退職　５．死亡　７．75歳到達　９．障害認定　\n「4.5.7.9」のいずれかを入力して下さい"]
[null,"退職・死亡年月日","退職・死亡","2018-03-31","退職、死亡の場合は、退職日、死亡日を和暦で入力して下さい。",null,{"$f":"IF(D12>650,650,IF(D12<88,88,D12))","v":650}]
[null,"喪失年月日","必須","2018-04-01","退職日・死亡日の翌日を和暦で入力して下さい。"]
[null,"標準報酬月額","必須",680,"給料の等級",null,1,"添付"]
[null,"備考",null,null,"1.二以上事業所勤務者の喪失　2.退職後の継続再雇用者の喪失　3.その他",null,2,"返不能"]
[null,null,"その他の場合",null,"3.その他の場合入力して下さい。",null,3,"滅失"]
[null,"70歳以上被用者","不該当の場合","1","70歳以上被用者として使用するときは「１」を入力して下さい。"]
[null,null,"不該当年月日","2019-06-20","退職日、死亡日を和暦で入力して下さい。",null,1,"二以上事業所勤務者の喪失"]
[null,"保険証回収区分","必須",1,"１．添付　２．返不能　３．滅失　\n返不能、滅失の場合は「回収不能届」を添付して下さい。",null,2,"退職後の継続再雇用者の喪失"]
[null,"郵便番号","必須","542-0066","「542-0066」のように入力して下さい。",null,3,"その他"]
[null,"住所","必須","大阪府大阪市中央区瓦屋町2-3-1","住所を入力"]
[null,"年金番号",null,"1035","健保番号と違う場合のみ入力してください。"]
[]
[]
[]
[]
[]
[]
[]
[]
[]
[]
[]
[]
[]
[]
[]
[]
[]
[]
[]
[]
[]
[]
[]
[]
[2,"健保番号","必須",null,"資格喪失者の番号を入力"]
[null,"氏名(漢字)","必須",null,"氏名（漢字）を入力　姓と名の間にスペースを入れてください。"]
[null,"氏名(ﾌﾘｶﾞﾅ)","必須",null,"フリガナを入力　姓と名の間にスペースを入れてください。",null,4,"退職等"]
[null,"生年月日","必須",null,"「H7.1.1」のように和暦で入力して下さい。",null,5,"死亡"]
[null,"個人番号","必須",null,"個人番号(マイナンバー)12桁を入力",null,7,"75歳到達（健康保険のみ喪失）"]
[null,"基礎年金番号",null,null,"個人番号を入力した場合は不要です。",null,9,"障害認定（健康保険のみ喪失）"]
[null,"喪失理由","必須",null,"４．退職　５．死亡　７．75歳到達　９．障害認定　\n「4.5.7.9」のいずれかを入力して下さい"]
[null,"退職・死亡年月日","退職・死亡",null,"退職、死亡の場合は、退職日、死亡日を和暦で入力して下さい。",null,{"$f":"IF(D54>650,650,IF(D54<88,88,D54))","v":88}]
[null,"喪失年月日","必須",null,"退職日・死亡日の翌日を和暦で入力して下さい。"]
[null,"標準報酬月額","必須",null,"給料の等級",null,1,"添付"]
[null,"備考",null,null,"1.二以上事業所勤務者の喪失　2.退職後の継続再雇用者の喪失　3.その他",null,2,"返不能"]
[null,null,"その他の場合",null,"3.その他の場合入力して下さい。",null,3,"滅失"]
[null,"70歳以上被用者","不該当の場合",null,"70歳以上被用者として使用するときは「１」を入力して下さい。"]
[null,null,"不該当年月日",null,"退職日、死亡日を和暦で入力して下さい。",null,1,"二以上事業所勤務者の喪失"]
[null,"保険証回収区分","必須",null,"１．添付　２．返不能　３．滅失　\n返不能、滅失の場合は「回収不能届」を添付して下さい。",null,2,"退職後の継続再雇用者の喪失"]
[null,"郵便番号","必須",null,"「542-0066」のように入力して下さい。",null,3,"その他"]
[null,"住所","必須",null,"住所を入力"]
[null,"年金番号",null,null,"健保番号と違う場合のみ入力してください。"]
[]
[]
[]
[]
[]
[]
[]
[]
[]
[]
[]
[]
[]
[]
[]
[]
[]
[]
[]
[]
[]
[]
[]
[]
[3,"健保番号","必須",null,"資格喪失者の番号を入力"]
[null,"氏名(漢字)","必須",null,"氏名（漢字）を入力　姓と名の間にスペースを入れてください。"]
[null,"氏名(ﾌﾘｶﾞﾅ)","必須",null,"フリガナを入力　姓と名の間にスペースを入れてください。",null,4,"退職等"]
[null,"生年月日","必須",null,"「H7.1.1」のように和暦で入力して下さい。",null,5,"死亡"]
[null,"個人番号","必須",null,"個人番号(マイナンバー)12桁を入力",null,7,"75歳到達（健康保険のみ喪失）"]
[null,"基礎年金番号",null,null,"個人番号を入力した場合は不要です。",null,9,"障害認定（健康保険のみ喪失）"]
[null,"喪失理由","必須",null,"４．退職　５．死亡　７．75歳到達　９．障害認定　\n「4.5.7.9」のいずれかを入力して下さい"]
[null,"退職・死亡年月日","退職・死亡",null,"退職、死亡の場合は、退職日、死亡日を和暦で入力して下さい。",null,{"$f":"IF(D96>650,650,IF(D96<88,88,D96))","v":88}]
[null,"喪失年月日","必須",null,"退職日・死亡日の翌日を和暦で入力して下さい。"]
[null,"標準報酬月額","必須",null,"給料の等級",null,1,"添付"]
[null,"備考",null,null,"1.二以上事業所勤務者の喪失　2.退職後の継続再雇用者の喪失　3.その他",null,2,"返不能"]
[null,null,"その他の場合",null,"3.その他の場合入力して下さい。",null,3,"滅失"]
[null,"70歳以上被用者","不該当の場合",null,"70歳以上被用者として使用するときは「１」を入力して下さい。"]
[null,null,"不該当年月日",null,"退職日、死亡日を和暦で入力して下さい。",null,1,"二以上事業所勤務者の喪失"]
[null,"保険証回収区分","必須",null,"１．添付　２．返不能　３．滅失　\n返不能、滅失の場合は「回収不能届」を添付して下さい。",null,2,"退職後の継続再雇用者の喪失"]
[null,"郵便番号","必須",null,"「542-0066」のように入力して下さい。",null,3,"その他"]
[null,"住所","必須",null,"住所を入力"]
[null,"年金番号",null,null,"健保番号と違う場合のみ入力してください。"]
[]
[]
[]
[]
[]
[]
[]
[]
[]
[]
[]
[]
[]
[]
[]
[]
[]
[]
[]
[]
[]
[]
[]
[]
[4,"健保番号","必須",null,"資格喪失者の番号を入力"]
[null,"氏名(漢字)","必須",null,"氏名（漢字）を入力　姓と名の間にスペースを入れてください。"]
[null,"氏名(ﾌﾘｶﾞﾅ)","必須",null,"フリガナを入力　姓と名の間にスペースを入れてください。",null,4,"退職等"]
[null,"生年月日","必須",null,"「H7.1.1」のように和暦で入力して下さい。",null,5,"死亡"]
[null,"個人番号","必須",null,"個人番号(マイナンバー)12桁を入力",null,7,"75歳到達（健康保険のみ喪失）"]
[null,"基礎年金番号",null,null,"個人番号を入力した場合は不要です。",null,9,"障害認定（健康保険のみ喪失）"]
[null,"喪失理由","必須",null,"４．退職　５．死亡　７．75歳到達　９．障害認定　\n「4.5.7.9」のいずれかを入力して下さい"]
[null,"退職・死亡年月日","退職・死亡",null,"退職、死亡の場合は、退職日、死亡日を和暦で入力して下さい。",null,{"$f":"IF(D138>650,650,IF(D138<88,88,D138))","v":88}]
[null,"喪失年月日","必須",null,"退職日・死亡日の翌日を和暦で入力して下さい。"]
[null,"標準報酬月額","必須",null,"給料の等級",null,1,"添付"]
[null,"備考",null,null,"1.二以上事業所勤務者の喪失　2.退職後の継続再雇用者の喪失　3.その他",null,2,"返不能"]
[null,null,"その他の場合",null,"3.その他の場合入力して下さい。",null,3,"滅失"]
[null,"70歳以上被用者","不該当の場合",null,"70歳以上被用者として使用するときは「１」を入力して下さい。"]
[null,null,"不該当年月日",null,"退職日、死亡日を和暦で入力して下さい。",null,1,"二以上事業所勤務者の喪失"]
[null,"保険証回収区分","必須",null,"１．添付　２．返不能　３．滅失　\n返不能、滅失の場合は「回収不能届」を添付して下さい。",null,2,"退職後の継続再雇用者の喪失"]
[null,"郵便番号","必須",null,"「542-0066」のように入力して下さい。",null,3,"その他"]
[null,"住所","必須",null,"住所を入力"]
[null,"年金番号",null,null,"健保番号と違う場合のみ入力してください。"]

{"sheet":"健保正","index":3,"n_rows":227,"n_cols":140,"rows_kept":227,"cut":false,"hidden":false,"merged":[[219,115,224,123],[219,124,224,126],[219,127,224,129],[219,130,224,138],[219,139,224,141],[220,68,222,70],[220,72,222,97],[221,16,225,20],[221,21,225,59],[222,60,231,66],[223,70,225,97],[225,105,231,115],[225,116,231,120],[225,121,231,141],[226,16,231,20],[226,21,231,59],[226,67,231,73],[226,74,231,97],[219,5,221,7],[219,8,221,11],[219,12,231,15],[219,16,220,58],[219,60,221,62],[219,63,221,66],[219,98,231,104],[219,105,224,111],[219,112,224,114],[222,5,231,11],[206,63,208,66],[206,67,218,92],[206,93,208,95],[206,96,208,99],[206,100,208,103],[206,104,208,141],[209,5,218,11],[209,60,218,66],[209,93,218,99],[209,100,215,103],[209,104,215,116],[209,117,215,141],[216,100,218,103],[216,104,218,141],[193,107,194,109],[193,110,200,141],[195,104,200,109],[196,5,205,10],[196,22,200,27],[196,28,200,35],[196,36,200,103],[201,22,205,27],[201,28,203,30],[201,31,203,43],[201,44,205,141],[204,28,205,43],[193,0,231,4],[193,5,195,7],[193,8,195,10],[193,11,205,21],[193,22,195,24],[193,25,195,27],[193,28,195,35],[193,36,195,103],[193,104,194,106],[206,5,208,7],[206,8,208,11],[206,12,218,15],[206,16,218,19],[206,20,218,23],[206,24,218,27],[206,28,218,31],[206,32,218,35],[206,36,218,39],[206,40,218,43],[206,44,218,47],[206,48,218,51],[206,52,218,55],[206,56,218,59],[206,60,208,62],[177,115,182,123],[177,124,182,126],[177,127,182,129],[177,130,182,138],[177,139,182,141],[178,68,180,70],[178,72,180,97],[179,16,183,20],[179,21,183,59],[180,60,189,66],[181,70,183,97],[183,105,189,115],[183,116,189,120],[183,121,189,141],[184,16,189,20],[184,21,189,59],[184,67,189,73],[184,74,189,97],[177,5,179,7],[177,8,179,11],[177,12,189,15],[177,16,178,58],[177,60,179,62],[177,63,179,66],[177,98,189,104],[177,105,182,111],[177,112,182,114],[180,5,189,11],[164,63,166,66],[164,67,176,92],[164,93,166,95],[164,96,166,99],[164,100,166,103],[164,104,166,141],[167,5,176,11],[167,60,176,66],[167,93,176,99],[167,100,173,103],[167,104,173,116],[167,117,173,141],[174,100,176,103],[174,104,176,141],[151,107,152,109],[151,110,158,141],[153,104,158,109],[154,5,163,10],[154,22,158,27],[154,28,158,35],[154,36,158,103],[159,22,163,27],[159,28,161,30],[159,31,161,43],[159,44,163,141],[162,28,163,43],[151,0,189,4],[151,5,153,7],[151,8,153,10],[151,11,163,21],[151,22,153,24],[151,25,153,27],[151,28,153,35],[151,36,153,103],[151,104,152,106],[164,5,166,7],[164,8,166,11],[164,12,176,15],[164,16,176,19],[164,20,176,23],[164,24,176,27],[164,28,176,31],[164,32,176,35],[164,36,176,39],[164,40,176,43],[164,44,176,47],[164,48,176,51],[164,52,176,55],[164,56,176,59],[164,60,166,62],[136,72,138,97],[137,16,141,20],[137,21,141,59],[138,60,147,66],[139,70,141,97],[141,105,147,115],[141,116,147,120],[141,121,147,141],[142,16,147,20],[142,21,147,59],[142,67,147,73],[142,74,147,97],[125,5,134,11],[125,60,134,66],[125,93,134,99],[125,100,131,103],[125,104,131,116],[125,117,131,141],[132,100,134,103],[132,104,134,141],[135,5,137,7],[135,8,137,11],[135,12,147,15],[135,16,136,58],[135,60,137,62],[135,63,137,66],[135,98,147,104],[135,105,140,111],[135,112,140,114],[138,5,147,11],[135,115,140,123],[135,124,140,126],[135,127,140,129],[135,130,140,138],[135,139,140,141],[136,68,138,70],[112,5,121,10],[112,22,116,27],[112,28,116,35],[112,36,116,103],[117,22,121,27],[117,28,119,30],[117,31,119,43],[117,44,121,141],[120,28,121,43],[122,36,134,39],[122,40,134,43],[122,44,134,47],[122,48,134,51],[122,52,134,55],[122,56,134,59],[122,60,124,62],[109,107,110,109],[109,110,116,141],[111,104,116,109],[122,63,124,66],[122,67,134,92],[122,93,124,95],[122,96,124,99],[122,100,124,103],[122,104,124,141],[94,72,96,97],[97,70,99,97],[100,67,105,73],[100,74,105,97],[93,63,95,66],[99,116,105,120],[99,121,105,141],[109,0,147,4],[109,5,111,7],[109,8,111,10],[109,11,121,21],[109,22,111,24],[109,25,111,27],[109,28,111,35],[109,36,111,103],[109,104,110,106],[122,5,124,7],[122,8,124,11],[122,12,134,15],[122,16,134,19],[122,20,134,23],[122,24,134,27],[122,28,134,31],[122,32,134,35],[80,44,92,47],[80,48,92,51],[80,52,92,55],[93,12,105,15],[95,16,99,20],[95,21,99,59],[93,16,94,58],[100,16,105,20],[100,21,105,59],[3,131,12,141],[0,76,2,86],[0,87,2,97],[0,98,2,108],[0,109,2,119],[0,120,2,130],[0,131,2,141],[3,76,12,86],[3,87,12,97],[3,98,12,108],[3,109,12,119],[3,120,12,130],[1,14,7,73],[20,5,24,15],[20,16,22,69],[23,16,25,18],[23,19,25,31],[23,32,25,69],[25,5,30,15],[26,16,32,69],[31,5,33,15],[33,16,33,69],[47,5,47,15],[47,16,47,69],[48,5,53,15],[48,16,53,69],[15,0,53,4],[9,0,12,27],[20,105,23,139],[24,105,52,139],[67,104,68,106],[67,22,69,24],[67,25,69,27],[15,5,18,15],[15,16,18,23],[34,5,39,15],[34,16,39,69],[40,5,40,15],[40,16,40,69],[41,5,46,15],[41,16,46,61],[41,62,46,69],[67,110,74,141],[70,28,74,35],[69,104,74,109],[67,107,68,109],[67,0,105,4],[96,5,105,11],[80,5,82,7],[83,5,92,11],[80,8,82,11],[80,12,92,15],[80,56,92,59],[80,16,92,19],[80,20,92,23],[80,24,92,27],[80,28,92,31],[80,32,92,35],[80,36,92,39],[80,40,92,43],[93,5,95,7],[93,8,95,11],[70,22,74,27],[75,22,79,27],[75,28,77,30],[75,31,77,43],[75,44,79,141],[78,28,79,43],[93,112,98,114],[93,124,98,126],[50,71,54,101],[55,131,64,139],[55,71,64,130],[67,28,69,35],[70,36,74,103],[67,36,69,103],[67,5,69,7],[67,8,69,10],[70,5,79,10],[67,11,79,21],[90,104,92,141],[80,100,82,103],[80,104,82,141],[83,100,89,103],[83,104,89,116],[83,117,89,141],[90,100,92,103],[80,67,92,92],[93,60,95,62],[80,93,82,95],[80,96,82,99],[83,93,92,99],[80,60,82,62],[80,63,82,66],[83,60,92,66],[93,127,98,129],[93,139,98,141],[93,115,98,123],[93,130,98,138],[93,98,105,104],[93,105,98,111],[99,105,105,115],[96,60,105,66],[94,68,96,70]]}
[null,null,null,null,null,null,null,null,null,null,null,null,null,null,null,null,null,null,null,null,null,null,null,null,null,null,null,null,null,null,null,null,null,null,null,null,null,null,null,null,null,null,null,null,null,null,null,null,null,null,null,null,null,null,null,null,null,null,null,null,null,null,null,null,null,null,null,null,null,null,null,null,null,null,null,null,"常務理事",null,null,null,null,null,null,null,null,null,null,"事務長",null,null,null,null,null,null,null,null,null,null,"部長",null,null,null,null,null,null,null,null,null,null,"課長",null,null,null,null,null,null,null,null,null,null,"係長",null,null,null,null,null,null,null,null,null,null,"係"]
[null,null,null,null,null,null,null,null,null,null,null,null,null,null,"健康保険　被保険者資格喪失届"]
[]
[]
[]
[]
[]
[]
[]
[{"$f":"基本情報登録!C2","v":"2022-11-02"}]
[]
[]
[]
[]
[]
["事業主記入欄",null,null,null,null,"記号",null,null,null,null,null,null,null,null,null,null,{"$f":"基本情報登録!C6","v":"532"}]
[]
[]
[]
[]
[null,null,null,null,null,null,null,null,null,null,null,null,null,null,null,null,"届書記入の個人番号(基礎年金番号)に誤りがないことを確認しました。",null,null,null,null,null,null,null,null,null,null,null,null,null,null,null,null,null,null,null,null,null,null,null,null,null,null,null,null,null,null,null,null,null,null,null,null,null,null,null,null,null,null,null,null,null,null,null,null,null,null,null,null,null,null,null,null,null,null,null,null,null,null,null,null,null,null,null,null,null,null,null,null,null,null,null,null,null,null,null,null,null,null,null,null,null,null,null,null,"受付印"]
[]
[]
[null,null,null,null,null,null,null,null,null,null,null,null,null,null,null,null,"〒",null,null,{"$f":"基本情報登録!C7","v":"542-0066"}]
[]
[null,null,null,null,null,"事業所\n所在地"]
[null,null,null,null,null,null,null,null,null,null,null,null,null,null,null,null,{"$f":"基本情報登録!C8","v":"大阪府大阪市中央区瓦屋町2-3-1"}]
[]
[]
[]
[]
[]
[]
[]
[null,null,null,null,null,"事業所\n名称",null,null,null,null,null,null,null,null,null,null,{"$f":"基本情報登録!C9","v":"大阪自動車整備健康保険組合"}]
[]
[]
[]
[]
[]
[]
[null,null,null,null,null,"事業主\n氏名",null,null,null,null,null,null,null,null,null,null,{"$f":"基本情報登録!C10","v":"理事長　健保　太郎"}]
[]
[]
[]
[]
[]
[]
[null,null,null,null,null,"電話番号",null,null,null,null,null,null,null,null,null,null,{"$f":"基本情報登録!C11","v":"06-6762-6371"}]
[]
[null,null,null,null,null,null,null,null,null,null,null,null,null,null,null,null,null,null,null,null,null,null,null,null,null,null,null,null,null,null,null,null,null,null,null,null,null,null,null,null,null,null,null,null,null,null,null,null,null,null,null,null,null,null,null,null,null,null,null,null,null,null,null,null,null,null,null,null,null,null,null,"社会保険労務士記載欄"]
[]
[]
[]
[]
[]
[]
[]
[]
[]
[]
[]
[]
[]
[]
[]
[]
["被保険者１",null,null,null,null,1,null,null,null,null,null,{"$f":"IF(ISTEXT(喪失者情報入力!D3),喪失者情報入力!D3,\"\")","v":"1045"},null,null,null,null,null,null,null,null,null,null,2,null,null,null,null,null,"(ﾌﾘｶﾞﾅ)",null,null,null,null,null,null,null,{"$f":"IF(ISTEXT(喪失者情報入力!D5),喪失者情報入力!D5,\"\")","v":"ケンポ　サブロウ"},null,null,null,null,null,null,null,null,null,null,null,null,null,null,null,null,null,null,null,null,null,null,null,null,null,null,null,null,null,null,null,null,null,null,null,null,null,null,null,null,null,null,null,null,null,null,null,null,null,null,null,null,null,null,null,null,null,null,null,null,null,null,null,null,null,null,null,3,null,null,null,null,null,{"$f":"IF(ISNUMBER(喪失者情報入力!D6),喪失者情報入力!D6,\"\")","v":"1953-03-15"}]
[]
[null,null,null,null,null,null,null,null,null,null,null,null,null,null,null,null,null,null,null,null,null,null,null,null,null,null,null,null,null,null,null,null,null,null,null,null,null,null,null,null,null,null,null,null,null,null,null,null,null,null,null,null,null,null,null,null,null,null,null,null,null,null,null,null,null,null,null,null,null,null,null,null,null,null,null,null,null,null,null,null,null,null,null,null,null,null,null,null,null,null,null,null,null,null,null,null,null,null,null,null,null,null,null,null,"生年\n月日"]
[null,null,null,null,null,"番号",null,null,null,null,null,null,null,null,null,null,null,null,null,null,null,null,"氏名",null,null,null,null,null,null,null,null,null,null,null,null,null,{"$f":"IF(ISTEXT(喪失者情報入力!D4),喪失者情報入力!D4,\"\")","v":"健保　三朗"}]
[]
[]
[]
[]
[null,null,null,null,null,null,null,null,null,null,null,null,null,null,null,null,null,null,null,null,null,null,"住所",null,null,null,null,null,"〒",null,null,{"$f":"IF(ISTEXT(喪失者情報入力!D18),喪失者情報入力!D18,\"\")","v":"542-0066"},null,null,null,null,null,null,null,null,null,null,null,null,{"$f":"IF(ISTEXT(喪失者情報入力!D19),喪失者情報入力!D19,\"\")","v":"大阪府大阪市中央区瓦屋町2-3-1"}]
[]
[]
[]
[]
[null,null,null,null,null,4,null,null,null,null,null,null,{"$f":"IF(ISTEXT(喪失者情報入力!D7),MID(喪失者情報入力!D7,1,1),IF(ISTEXT(喪失者情報入力!D8),MID(喪失者情報入力!D8,1,1),\"\"))","v":"1"},null,null,null,{"$f":"IF(ISTEXT(喪失者情報入力!D7),MID(喪失者情報入力!D7,2,1),IF(ISTEXT(喪失者情報入力!D8),MID(喪失者情報入力!D8,2,1),\"\"))","v":"2"},null,null,null,{"$f":"IF(ISTEXT(喪失者情報入力!D7),MID(喪失者情報入力!D7,3,1),IF(ISTEXT(喪失者情報入力!D8),MID(喪失者情報入力!D8,3,1),\"\"))","v":"3"},null,null,null,{"$f":"IF(ISTEXT(喪失者情報入力!D7),MID(喪失者情報入力!D7,4,1),IF(ISTEXT(喪失者情報入力!D8),MID(喪失者情報入力!D8,4,1),\"\"))","v":"4"},null,null,null,{"$f":"IF(ISTEXT(喪失者情報入力!D7),MID(喪失者情報入力!D7,5,1),IF(ISTEXT(喪失者情報入力!D8),MID(喪失者情報入力!D8,5,1),\"\"))","v":"5"},null,null,null,{"$f":"IF(ISTEXT(喪失者情報入力!D7),MID(喪失者情報入力!D7,6,1),IF(ISTEXT(喪失者情報入力!D8),MID(喪失者情報入力!D8,6,1),\"\"))","v":"6"},null,null,null,{"$f":"IF(ISTEXT(喪失者情報入力!D7),MID(喪失者情報入力!D7,7,1),IF(ISTEXT(喪失者情報入力!D8),MID(喪失者情報入力!D8,7,1),\"\"))","v":"7"},null,null,null,{"$f":"IF(ISTEXT(喪失者情報入力!D7),MID(喪失者情報入力!D7,8,1),IF(ISTEXT(喪失者情報入力!D8),MID(喪失者情報入力!D8,8,1),\"\"))","v":"8"},null,null,null,{"$f":"IF(ISTEXT(喪失者情報入力!D7),MID(喪失者情報入力!D7,9,1),IF(ISTEXT(喪失者情報入力!D8),MID(喪失者情報入力!D8,9,1),\"\"))","v":"9"},null,null,null,{"$f":"IF(ISTEXT(喪失者情報入力!D7),MID(喪失者情報入力!D7,10,1),IF(ISTEXT(喪失者情報入力!D8),MID(喪失者情報入力!D8,10,1),\"\"))","v":"0"},null,null,null,{"$f":"IF(ISTEXT(喪失者情報入力!D7),MID(喪失者情報入力!D7,11,1),\"\")","v":"1"},null,null,null,{"$f":"IF(ISTEXT(喪失者情報入力!D7),MID(喪失者情報入力!D7,12,1),\"\")","v":"2"},null,null,null,5,null,null,null,null,null,null,{"$f":"IF(ISNUMBER(喪失者情報入力!D11),喪失者情報入力!D11,\"\")","v":"2018-04-01"},null,null,null,null,null,null,null,null,null,null,null,null,null,null,null,null,null,null,null,null,null,null,null,null,null,6,null,null,null,null,null,null,{"$f":"IF(喪失者情報入力!D9=7,7,\"\")","v":""},null,null,null,{"$f":"IF(喪失者情報入力!D9=7,喪失者情報入力!H7,\"\")","v":""}]
[]
[]
[null,null,null,null,null,"個人\n番号\n(基礎年金番号)",null,null,null,null,null,null,null,null,null,null,null,null,null,null,null,null,null,null,null,null,null,null,null,null,null,null,null,null,null,null,null,null,null,null,null,null,null,null,null,null,null,null,null,null,null,null,null,null,null,null,null,null,null,null,"喪失\n年月日",null,null,null,null,null,null,null,null,null,null,null,null,null,null,null,null,null,null,null,null,null,null,null,null,null,null,null,null,null,null,null,null,"喪失\n(不該当)\n原因",null,null,null,null,null,null,{"$f":"IF(ISNUMBER(喪失者情報入力!D9),IF(OR(喪失者情報入力!D9=4,喪失者情報入力!D9=5),喪失者情報入力!D9,\"\"),\"\")","v":4},null,null,null,{"$f":"IF(ISNUMBER(喪失者情報入力!D9),IF(OR(喪失者情報入力!D9=4,喪失者情報入力!D9=5),VLOOKUP(喪失者情報入力!D9,喪失者情報入力!G5:H6,2,0),\"\"),\"\")","v":"退職等"},null,null,null,null,null,null,null,null,null,null,null,null,{"$f":"IF(OR(喪失者情報入力!D9=4,喪失者情報入力!D9=5),喪失者情報入力!D10,\"\")","v":"2018-03-31"}]
[]
[]
[]
[]
[]
[]
[null,null,null,null,null,null,null,null,null,null,null,null,null,null,null,null,null,null,null,null,null,null,null,null,null,null,null,null,null,null,null,null,null,null,null,null,null,null,null,null,null,null,null,null,null,null,null,null,null,null,null,null,null,null,null,null,null,null,null,null,null,null,null,null,null,null,null,null,null,null,null,null,null,null,null,null,null,null,null,null,null,null,null,null,null,null,null,null,null,null,null,null,null,null,null,null,null,null,null,null,{"$f":"IF(喪失者情報入力!D9=9,9,\"\")","v":""},null,null,null,{"$f":"IF(喪失者情報入力!D9=9,喪失者情報入力!H8,\"\")","v":""}]
[]
[]
[null,null,null,null,null,7,null,null,null,null,null,null,null,null,null,null,null,null,null,null,null,null,null,null,null,null,null,null,null,null,null,null,null,null,null,null,null,null,null,null,null,null,null,null,null,null,null,null,null,null,null,null,null,null,null,null,null,null,null,null,8,null,null,null,null,null,null,null,null,null,null,null,null,null,null,null,null,null,null,null,null,null,null,null,null,null,null,null,null,null,null,null,null,null,null,null,null,null,"組合\n使用欄",null,null,null,null,null,null,"標準報\n酬月額",null,null,null,null,null,null,"健",null,null,{"$f":"IF(ISNUMBER(喪失者情報入力!D12),喪失者情報入力!D12,\"\")","v":680},null,null,null,null,null,null,null,null,"千円",null,null,"年",null,null,{"$f":"IF(ISNUMBER(喪失者情報入力!D12),喪失者情報入力!G10,\"\")","v":650},null,null,null,null,null,null,null,null,"千円"]
[null,null,null,null,null,null,null,null,null,null,null,null,null,null,null,null,null,null,null,null,null,null,null,null,null,null,null,null,null,null,null,null,null,null,null,null,null,null,null,null,null,null,null,null,null,null,null,null,null,null,null,null,null,null,null,null,null,null,null,null,null,null,null,null,null,null,null,null,{"$f":"IF(ISTEXT(喪失者情報入力!D15),\"✔\",\"\")","v":"✔"},null,null,null,"70歳以上被用者不該当者"]
[null,null,null,null,null,null,null,null,null,null,null,null,null,null,null,null,{"$f":"IF(ISNUMBER(喪失者情報入力!D13),喪失者情報入力!D13,\"\")","v":""},null,null,null,null,{"$f":"IF(ISNUMBER(喪失者情報入力!D13),VLOOKUP(喪失者情報入力!D13,喪失者情報入力!G16:H18,2,0),\"\")","v":""}]
[null,null,null,null,null,"備考",null,null,null,null,null,null,null,null,null,null,null,null,null,null,null,null,null,null,null,null,null,null,null,null,null,null,null,null,null,null,null,null,null,null,null,null,null,null,null,null,null,null,null,null,null,null,null,null,null,null,null,null,null,null,"70歳\n不該当"]
[null,null,null,null,null,null,null,null,null,null,null,null,null,null,null,null,null,null,null,null,null,null,null,null,null,null,null,null,null,null,null,null,null,null,null,null,null,null,null,null,null,null,null,null,null,null,null,null,null,null,null,null,null,null,null,null,null,null,null,null,null,null,null,null,null,null,null,null,null,null,"(退職日又は死亡日を記入して下さい)"]
[]
[null,null,null,null,null,null,null,null,null,null,null,null,null,null,null,null,null,null,null,null,null,null,null,null,null,null,null,null,null,null,null,null,null,null,null,null,null,null,null,null,null,null,null,null,null,null,null,null,null,null,null,null,null,null,null,null,null,null,null,null,null,null,null,null,null,null,null,null,null,null,null,null,null,null,null,null,null,null,null,null,null,null,null,null,null,null,null,null,null,null,null,null,null,null,null,null,null,null,null,null,null,null,null,null,null,"保険証\n回収区分",null,null,null,null,null,null,null,null,null,null,{"$f":"IF(ISNUMBER(喪失者情報入力!D17),喪失者情報入力!D17,\"\")","v":1},null,null,null,null,{"$f":"IF(ISNUMBER(喪失者情報入力!D17),VLOOKUP(喪失者情報入力!D17,喪失者情報入力!G12:H14,2,0),\"\")","v":"添付"}]
[null,null,null,null,null,null,null,null,null,null,null,null,null,null,null,null,null,null,null,null,null,{"$f":"IF(喪失者情報入力!D13=3,喪失者情報入力!D14,\"\")","v":""},null,null,null,null,null,null,null,null,null,null,null,null,null,null,null,null,null,null,null,null,null,null,null,null,null,null,null,null,null,null,null,null,null,null,null,null,null,null,null,null,null,null,null,null,null,"不該当\n年月日",null,null,null,null,null,null,{"$f":"IF(ISNUMBER(喪失者情報入力!D16),喪失者情報入力!D16,\"\")","v":"2019-06-20"}]
[]
[]
[]
[]
[]
[]
[]
[]
["被保険者２",null,null,null,null,1,null,null,null,null,null,{"$f":"IF(ISTEXT(喪失者情報入力!D45),喪失者情報入力!D45,\"\")","v":""},null,null,null,null,null,null,null,null,null,null,2,null,null,null,null,null,"(ﾌﾘｶﾞﾅ)",null,null,null,null,null,null,null,{"$f":"IF(ISTEXT(喪失者情報入力!D47),喪失者情報入力!D47,\"\")","v":""},null,null,null,null,null,null,null,null,null,null,null,null,null,null,null,null,null,null,null,null,null,null,null,null,null,null,null,null,null,null,null,null,null,null,null,null,null,null,null,null,null,null,null,null,null,null,null,null,null,null,null,null,null,null,null,null,null,null,null,null,null,null,null,null,null,null,null,3,null,null,null,null,null,{"$f":"IF(ISNUMBER(喪失者情報入力!D48),喪失者情報入力!D48,\"\")","v":""}]
[]
[null,null,null,null,null,null,null,null,null,null,null,null,null,null,null,null,null,null,null,null,null,null,null,null,null,null,null,null,null,null,null,null,null,null,null,null,null,null,null,null,null,null,null,null,null,null,null,null,null,null,null,null,null,null,null,null,null,null,null,null,null,null,null,null,null,null,null,null,null,null,null,null,null,null,null,null,null,null,null,null,null,null,null,null,null,null,null,null,null,null,null,null,null,null,null,null,null,null,null,null,null,null,null,null,"生年\n月日"]
[null,null,null,null,null,"番号",null,null,null,null,null,null,null,null,null,null,null,null,null,null,null,null,"氏名",null,null,null,null,null,null,null,null,null,null,null,null,null,{"$f":"IF(ISTEXT(喪失者情報入力!D46),喪失者情報入力!D46,\"\")","v":""}]
[]
[]
[]
[]
[null,null,null,null,null,null,null,null,null,null,null,null,null,null,null,null,null,null,null,null,null,null,"住所",null,null,null,null,null,"〒",null,null,{"$f":"IF(ISTEXT(喪失者情報入力!D60),喪失者情報入力!D60,\"\")","v":""},null,null,null,null,null,null,null,null,null,null,null,null,{"$f":"IF(ISTEXT(喪失者情報入力!D61),喪失者情報入力!D61,\"\")","v":""}]
[]
[]
[]
[]
[null,null,null,null,null,4,null,null,null,null,null,null,{"$f":"IF(ISTEXT(喪失者情報入力!D49),MID(喪失者情報入力!D49,1,1),IF(ISTEXT(喪失者情報入力!D50),MID(喪失者情報入力!D50,1,1),\"\"))","v":""},null,null,null,{"$f":"IF(ISTEXT(喪失者情報入力!D49),MID(喪失者情報入力!D49,2,1),IF(ISTEXT(喪失者情報入力!D50),MID(喪失者情報入力!D50,2,1),\"\"))","v":""},null,null,null,{"$f":"IF(ISTEXT(喪失者情報入力!D49),MID(喪失者情報入力!D49,3,1),IF(ISTEXT(喪失者情報入力!D50),MID(喪失者情報入力!D50,3,1),\"\"))","v":""},null,null,null,{"$f":"IF(ISTEXT(喪失者情報入力!D49),MID(喪失者情報入力!D49,4,1),IF(ISTEXT(喪失者情報入力!D50),MID(喪失者情報入力!D50,4,1),\"\"))","v":""},null,null,null,{"$f":"IF(ISTEXT(喪失者情報入力!D49),MID(喪失者情報入力!D49,5,1),IF(ISTEXT(喪失者情報入力!D50),MID(喪失者情報入力!D50,5,1),\"\"))","v":""},null,null,null,{"$f":"IF(ISTEXT(喪失者情報入力!D49),MID(喪失者情報入力!D49,6,1),IF(ISTEXT(喪失者情報入力!D50),MID(喪失者情報入力!D50,6,1),\"\"))","v":""},null,null,null,{"$f":"IF(ISTEXT(喪失者情報入力!D49),MID(喪失者情報入力!D49,7,1),IF(ISTEXT(喪失者情報入力!D50),MID(喪失者情報入力!D50,7,1),\"\"))","v":""},null,null,null,{"$f":"IF(ISTEXT(喪失者情報入力!D49),MID(喪失者情報入力!D49,8,1),IF(ISTEXT(喪失者情報入力!D50),MID(喪失者情報入力!D50,8,1),\"\"))","v":""},null,null,null,{"$f":"IF(ISTEXT(喪失者情報入力!D49),MID(喪失者情報入力!D49,9,1),IF(ISTEXT(喪失者情報入力!D50),MID(喪失者情報入力!D50,9,1),\"\"))","v":""},null,null,null,{"$f":"IF(ISTEXT(喪失者情報入力!D49),MID(喪失者情報入力!D49,10,1),IF(ISTEXT(喪失者情報入力!D50),MID(喪失者情報入力!D50,10,1),\"\"))","v":""},null,null,null,{"$f":"IF(ISTEXT(喪失者情報入力!D49),MID(喪失者情報入力!D49,11,1),\"\")","v":""},null,null,null,{"$f":"IF(ISTEXT(喪失者情報入力!D49),MID(喪失者情報入力!D49,12,1),\"\")","v":""},null,null,null,5,null,null,null,null,null,null,{"$f":"IF(ISNUMBER(喪失者情報入力!D53),喪失者情報入力!D53,\"\")","v":""},null,null,null,null,null,null,null,null,null,null,null,null,null,null,null,null,null,null,null,null,null,null,null,null,null,6,null,null,null,null,null,null,{"$f":"IF(喪失者情報入力!D51=7,7,\"\")","v":""},null,null,null,{"$f":"IF(喪失者情報入力!D51=7,喪失者情報入力!H49,\"\")","v":""}]
[]
[]
[null,null,null,null,null,"個人\n番号\n(基礎年金番号)",null,null,null,null,null,null,null,null,null,null,null,null,null,null,null,null,null,null,null,null,null,null,null,null,null,null,null,null,null,null,null,null,null,null,null,null,null,null,null,null,null,null,null,null,null,null,null,null,null,null,null,null,null,null,"喪失\n年月日",null,null,null,null,null,null,null,null,null,null,null,null,null,null,null,null,null,null,null,null,null,null,null,null,null,null,null,null,null,null,null,null,"喪失\n(不該当)\n原因",null,null,null,null,null,null,{"$f":"IF(ISNUMBER(喪失者情報入力!D51),IF(OR(喪失者情報入力!D51=4,喪失者情報入力!D51=5),喪失者情報入力!D51,\"\"),\"\")","v":""},null,null,null,{"$f":"IF(ISNUMBER(喪失者情報入力!D51),IF(OR(喪失者情報入力!D51=4,喪失者情報入力!D51=5),VLOOKUP(喪失者情報入力!D51,喪失者情報入力!G47:H48,2,0),\"\"),\"\")","v":""},null,null,null,null,null,null,null,null,null,null,null,null,{"$f":"IF(OR(喪失者情報入力!D51=4,喪失者情報入力!D51=5),喪失者情報入力!D52,\"\")","v":""}]
[]
[]
[]
[]
[]
[]
[null,null,null,null,null,null,null,null,null,null,null,null,null,null,null,null,null,null,null,null,null,null,null,null,null,null,null,null,null,null,null,null,null,null,null,null,null,null,null,null,null,null,null,null,null,null,null,null,null,null,null,null,null,null,null,null,null,null,null,null,null,null,null,null,null,null,null,null,null,null,null,null,null,null,null,null,null,null,null,null,null,null,null,null,null,null,null,null,null,null,null,null,null,null,null,null,null,null,null,null,{"$f":"IF(喪失者情報入力!D51=9,9,\"\")","v":""},null,null,null,{"$f":"IF(喪失者情報入力!D51=9,喪失者情報入力!H50,\"\")","v":""}]
[]
[]
[null,null,null,null,null,7,null,null,null,null,null,null,null,null,null,null,null,null,null,null,null,null,null,null,null,null,null,null,null,null,null,null,null,null,null,null,null,null,null,null,null,null,null,null,null,null,null,null,null,null,null,null,null,null,null,null,null,null,null,null,8,null,null,null,null,null,null,null,null,null,null,null,null,null,null,null,null,null,null,null,null,null,null,null,null,null,null,null,null,null,null,null,null,null,null,null,null,null,"組合\n使用欄",null,null,null,null,null,null,"標準報\n酬月額",null,null,null,null,null,null,"健",null,null,{"$f":"IF(ISNUMBER(喪失者情報入力!D54),喪失者情報入力!D54,\"\")","v":""},null,null,null,null,null,null,null,null,"千円",null,null,"年",null,null,{"$f":"IF(ISNUMBER(喪失者情報入力!D54),喪失者情報入力!G52,\"\")","v":""},null,null,null,null,null,null,null,null,"千円"]
[null,null,null,null,null,null,null,null,null,null,null,null,null,null,null,null,null,null,null,null,null,null,null,null,null,null,null,null,null,null,null,null,null,null,null,null,null,null,null,null,null,null,null,null,null,null,null,null,null,null,null,null,null,null,null,null,null,null,null,null,null,null,null,null,null,null,null,null,{"$f":"IF(ISTEXT(喪失者情報入力!D57),\"✔\",\"\")","v":""},null,null,null,"70歳以上被用者該当者"]
[null,null,null,null,null,null,null,null,null,null,null,null,null,null,null,null,{"$f":"IF(ISNUMBER(喪失者情報入力!D55),喪失者情報入力!D55,\"\")","v":""},null,null,null,null,{"$f":"IF(ISNUMBER(喪失者情報入力!D55),VLOOKUP(喪失者情報入力!D55,喪失者情報入力!G58:H60,2,0),\"\")","v":""}]
[null,null,null,null,null,"備考",null,null,null,null,null,null,null,null,null,null,null,null,null,null,null,null,null,null,null,null,null,null,null,null,null,null,null,null,null,null,null,null,null,null,null,null,null,null,null,null,null,null,null,null,null,null,null,null,null,null,null,null,null,null,"70歳\n不該当"]
[null,null,null,null,null,null,null,null,null,null,null,null,null,null,null,null,null,null,null,null,null,null,null,null,null,null,null,null,null,null,null,null,null,null,null,null,null,null,null,null,null,null,null,null,null,null,null,null,null,null,null,null,null,null,null,null,null,null,null,null,null,null,null,null,null,null,null,null,null,null,"(退職日又は死亡日を記入して下さい)"]
[]
[null,null,null,null,null,null,null,null,null,null,null,null,null,null,null,null,null,null,null,null,null,null,null,null,null,null,null,null,null,null,null,null,null,null,null,null,null,null,null,null,null,null,null,null,null,null,null,null,null,null,null,null,null,null,null,null,null,null,null,null,null,null,null,null,null,null,null,null,null,null,null,null,null,null,null,null,null,null,null,null,null,null,null,null,null,null,null,null,null,null,null,null,null,null,null,null,null,null,null,null,null,null,null,null,null,"保険証\n回収区分",null,null,null,null,null,null,null,null,null,null,{"$f":"IF(ISNUMBER(喪失者情報入力!D59),喪失者情報入力!D59,\"\")","v":""},null,null,null,null,{"$f":"IF(ISNUMBER(喪失者情報入力!D59),VLOOKUP(喪失者情報入力!D59,喪失者情報入力!G54:H56,2,0),\"\")","v":""}]
[null,null,null,null,null,null,null,null,null,null,null,null,null,null,null,null,null,null,null,null,null,{"$f":"IF(喪失者情報入力!D55=3,喪失者情報入力!D56,\"\")","v":""},null,null,null,null,null,null,null,null,null,null,null,null,null,null,null,null,null,null,null,null,null,null,null,null,null,null,null,null,null,null,null,null,null,null,null,null,null,null,null,null,null,null,null,null,null,"不該当\n年月日",null,null,null,null,null,null,{"$f":"IF(ISNUMBER(喪失者情報入力!D58),喪失者情報入力!D58,\"\")","v":""}]
[]
[]
[]
[]
[]
[]
[]
[]
["被保険者３",null,null,null,null,1,null,null,null,null,null,{"$f":"IF(ISTEXT(喪失者情報入力!D87),喪失者情報入力!D87,\"\")","v":""},null,null,null,null,null,null,null,null,null,null,2,null,null,null,null,null,"(ﾌﾘｶﾞﾅ)",null,null,null,null,null,null,null,{"$f":"IF(ISTEXT(喪失者情報入力!D89),喪失者情報入力!D89,\"\")","v":""},null,null,null,null,null,null,null,null,null,null,null,null,null,null,null,null,null,null,null,null,null,null,null,null,null,null,null,null,null,null,null,null,null,null,null,null,null,null,null,null,null,null,null,null,null,null,null,null,null,null,null,null,null,null,null,null,null,null,null,null,null,null,null,null,null,null,null,3,null,null,null,null,null,{"$f":"IF(ISNUMBER(喪失者情報入力!D90),喪失者情報入力!D90,\"\")","v":""}]
[]
[null,null,null,null,null,null,null,null,null,null,null,null,null,null,null,null,null,null,null,null,null,null,null,null,null,null,null,null,null,null,null,null,null,null,null,null,null,null,null,null,null,null,null,null,null,null,null,null,null,null,null,null,null,null,null,null,null,null,null,null,null,null,null,null,null,null,null,null,null,null,null,null,null,null,null,null,null,null,null,null,null,null,null,null,null,null,null,null,null,null,null,null,null,null,null,null,null,null,null,null,null,null,null,null,"生年\n月日"]
[null,null,null,null,null,"番号",null,null,null,null,null,null,null,null,null,null,null,null,null,null,null,null,"氏名",null,null,null,null,null,null,null,null,null,null,null,null,null,{"$f":"IF(ISTEXT(喪失者情報入力!D88),喪失者情報入力!D88,\"\")","v":""}]
[]
[]
[]
[]
[null,null,null,null,null,null,null,null,null,null,null,null,null,null,null,null,null,null,null,null,null,null,"住所",null,null,null,null,null,"〒",null,null,{"$f":"IF(ISTEXT(喪失者情報入力!D102),喪失者情報入力!D102,\"\")","v":""},null,null,null,null,null,null,null,null,null,null,null,null,{"$f":"IF(ISTEXT(喪失者情報入力!D103),喪失者情報入力!D103,\"\")","v":""}]
[]
[]
[]
[]
[null,null,null,null,null,4,null,null,null,null,null,null,{"$f":"IF(ISTEXT(喪失者情報入力!D91),MID(喪失者情報入力!D91,1,1),IF(ISTEXT(喪失者情報入力!D92),MID(喪失者情報入力!D92,1,1),\"\"))","v":""},null,null,null,{"$f":"IF(ISTEXT(喪失者情報入力!D91),MID(喪失者情報入力!D91,2,1),IF(ISTEXT(喪失者情報入力!D92),MID(喪失者情報入力!D92,2,1),\"\"))","v":""},null,null,null,{"$f":"IF(ISTEXT(喪失者情報入力!D91),MID(喪失者情報入力!D91,3,1),IF(ISTEXT(喪失者情報入力!D92),MID(喪失者情報入力!D92,3,1),\"\"))","v":""},null,null,null,{"$f":"IF(ISTEXT(喪失者情報入力!D91),MID(喪失者情報入力!D91,4,1),IF(ISTEXT(喪失者情報入力!D92),MID(喪失者情報入力!D92,4,1),\"\"))","v":""},null,null,null,{"$f":"IF(ISTEXT(喪失者情報入力!D91),MID(喪失者情報入力!D91,5,1),IF(ISTEXT(喪失者情報入力!D92),MID(喪失者情報入力!D92,5,1),\"\"))","v":""},null,null,null,{"$f":"IF(ISTEXT(喪失者情報入力!D91),MID(喪失者情報入力!D91,6,1),IF(ISTEXT(喪失者情報入力!D92),MID(喪失者情報入力!D92,6,1),\"\"))","v":""},null,null,null,{"$f":"IF(ISTEXT(喪失者情報入力!D91),MID(喪失者情報入力!D91,7,1),IF(ISTEXT(喪失者情報入力!D92),MID(喪失者情報入力!D92,7,1),\"\"))","v":""},null,null,null,{"$f":"IF(ISTEXT(喪失者情報入力!D91),MID(喪失者情報入力!D91,8,1),IF(ISTEXT(喪失者情報入力!D92),MID(喪失者情報入力!D92,8,1),\"\"))","v":""},null,null,null,{"$f":"IF(ISTEXT(喪失者情報入力!D91),MID(喪失者情報入力!D91,9,1),IF(ISTEXT(喪失者情報入力!D92),MID(喪失者情報入力!D92,9,1),\"\"))","v":""},null,null,null,{"$f":"IF(ISTEXT(喪失者情報入力!D91),MID(喪失者情報入力!D91,10,1),IF(ISTEXT(喪失者情報入力!D92),MID(喪失者情報入力!D92,10,1),\"\"))","v":""},null,null,null,{"$f":"IF(ISTEXT(喪失者情報入力!D91),MID(喪失者情報入力!D91,11,1),\"\")","v":""},null,null,null,{"$f":"IF(ISTEXT(喪失者情報入力!D91),MID(喪失者情報入力!D91,12,1),\"\")","v":""},null,null,null,5,null,null,null,null,null,null,{"$f":"IF(ISNUMBER(喪失者情報入力!D95),喪失者情報入力!D95,\"\")","v":""},null,null,null,null,null,null,null,null,null,null,null,null,null,null,null,null,null,null,null,null,null,null,null,null,null,6,null,null,null,null,null,null,{"$f":"IF(喪失者情報入力!D93=7,7,\"\")","v":""},null,null,null,{"$f":"IF(喪失者情報入力!D93=7,喪失者情報入力!H91,\"\")","v":""}]
[]
[]
[null,null,null,null,null,"個人\n番号\n(基礎年金番号)",null,null,null,null,null,null,null,null,null,null,null,null,null,null,null,null,null,null,null,null,null,null,null,null,null,null,null,null,null,null,null,null,null,null,null,null,null,null,null,null,null,null,null,null,null,null,null,null,null,null,null,null,null,null,"喪失\n年月日",null,null,null,null,null,null,null,null,null,null,null,null,null,null,null,null,null,null,null,null,null,null,null,null,null,null,null,null,null,null,null,null,"喪失\n(不該当)\n原因",null,null,null,null,null,null,{"$f":"IF(ISNUMBER(喪失者情報入力!D93),IF(OR(喪失者情報入力!D93=4,喪失者情報入力!D93=5),喪失者情報入力!D93,\"\"),\"\")","v":""},null,null,null,{"$f":"IF(ISNUMBER(喪失者情報入力!D93),IF(OR(喪失者情報入力!D93=4,喪失者情報入力!D93=5),VLOOKUP(喪失者情報入力!D93,喪失者情報入力!G89:H90,2,0),\"\"),\"\")","v":""},null,null,null,null,null,null,null,null,null,null,null,null,{"$f":"IF(OR(喪失者情報入力!D93=4,喪失者情報入力!D93=5),喪失者情報入力!D94,\"\")","v":""}]
[]
[]
[]
[]
[]
[]
[null,null,null,null,null,null,null,null,null,null,null,null,null,null,null,null,null,null,null,null,null,null,null,null,null,null,null,null,null,null,null,null,null,null,null,null,null,null,null,null,null,null,null,null,null,null,null,null,null,null,null,null,null,null,null,null,null,null,null,null,null,null,null,null,null,null,null,null,null,null,null,null,null,null,null,null,null,null,null,null,null,null,null,null,null,null,null,null,null,null,null,null,null,null,null,null,null,null,null,null,{"$f":"IF(喪失者情報入力!D93=9,9,\"\")","v":""},null,null,null,{"$f":"IF(喪失者情報入力!D93=9,喪失者情報入力!H92,\"\")","v":""}]
[]
[]
[null,null,null,null,null,7,null,null,null,null,null,null,null,null,null,null,null,null,null,null,null,null,null,null,null,null,null,null,null,null,null,null,null,null,null,null,null,null,null,null,null,null,null,null,null,null,null,null,null,null,null,null,null,null,null,null,null,null,null,null,8,null,null,null,null,null,null,null,null,null,null,null,null,null,null,null,null,null,null,null,null,null,null,null,null,null,null,null,null,null,null,null,null,null,null,null,null,null,"組合\n使用欄",null,null,null,null,null,null,"標準報\n酬月額",null,null,null,null,null,null,"健",null,null,{"$f":"IF(ISNUMBER(喪失者情報入力!D96),喪失者情報入力!D96,\"\")","v":""},null,null,null,null,null,null,null,null,"千円",null,null,"年",null,null,{"$f":"IF(ISNUMBER(喪失者情報入力!D96),喪失者情報入力!G94,\"\")","v":""},null,null,null,null,null,null,null,null,"千円"]
[null,null,null,null,null,null,null,null,null,null,null,null,null,null,null,null,null,null,null,null,null,null,null,null,null,null,null,null,null,null,null,null,null,null,null,null,null,null,null,null,null,null,null,null,null,null,null,null,null,null,null,null,null,null,null,null,null,null,null,null,null,null,null,null,null,null,null,null,{"$f":"IF(ISTEXT(喪失者情報入力!D99),\"✔\",\"\")","v":""},null,null,null,"70歳以上被用者該当者"]
[null,null,null,null,null,null,null,null,null,null,null,null,null,null,null,null,{"$f":"IF(ISNUMBER(喪失者情報入力!D97),喪失者情報入力!D97,\"\")","v":""},null,null,null,null,{"$f":"IF(ISNUMBER(喪失者情報入力!D97),VLOOKUP(喪失者情報入力!D97,喪失者情報入力!G100:H102,2,0),\"\")","v":""}]
[null,null,null,null,null,"備考",null,null,null,null,null,null,null,null,null,null,null,null,null,null,null,null,null,null,null,null,null,null,null,null,null,null,null,null,null,null,null,null,null,null,null,null,null,null,null,null,null,null,null,null,null,null,null,null,null,null,null,null,null,null,"70歳\n不該当"]
[null,null,null,null,null,null,null,null,null,null,null,null,null,null,null,null,null,null,null,null,null,null,null,null,null,null,null,null,null,null,null,null,null,null,null,null,null,null,null,null,null,null,null,null,null,null,null,null,null,null,null,null,null,null,null,null,null,null,null,null,null,null,null,null,null,null,null,null,null,null,"(退職日又は死亡日を記入して下さい)"]
[]
[null,null,null,null,null,null,null,null,null,null,null,null,null,null,null,null,null,null,null,null,null,null,null,null,null,null,null,null,null,null,null,null,null,null,null,null,null,null,null,null,null,null,null,null,null,null,null,null,null,null,null,null,null,null,null,null,null,null,null,null,null,null,null,null,null,null,null,null,null,null,null,null,null,null,null,null,null,null,null,null,null,null,null,null,null,null,null,null,null,null,null,null,null,null,null,null,null,null,null,null,null,null,null,null,null,"保険証\n回収区分",null,null,null,null,null,null,null,null,null,null,{"$f":"IF(ISNUMBER(喪失者情報入力!D101),喪失者情報入力!D101,\"\")","v":""},null,null,null,null,{"$f":"IF(ISNUMBER(喪失者情報入力!D101),VLOOKUP(喪失者情報入力!D101,喪失者情報入力!G96:H98,2,0),\"\")","v":""}]
[null,null,null,null,null,null,null,null,null,null,null,null,null,null,null,null,null,null,null,null,null,{"$f":"IF(喪失者情報入力!D97=3,喪失者情報入力!D98,\"\")","v":""},null,null,null,null,null,null,null,null,null,null,null,null,null,null,null,null,null,null,null,null,null,null,null,null,null,null,null,null,null,null,null,null,null,null,null,null,null,null,null,null,null,null,null,null,null,"不該当\n年月日",null,null,null,null,null,null,{"$f":"IF(ISNUMBER(喪失者情報入力!D100),喪失者情報入力!D100,\"\")","v":""}]
[]
[]
[]
[]
[]
[]
[]
[]
["被保険者４",null,null,null,null,1,null,null,null,null,null,{"$f":"IF(ISTEXT(喪失者情報入力!D129),喪失者情報入力!D129,\"\")","v":""},null,null,null,null,null,null,null,null,null,null,2,null,null,null,null,null,"(ﾌﾘｶﾞﾅ)",null,null,null,null,null,null,null,{"$f":"IF(ISTEXT(喪失者情報入力!D131),喪失者情報入力!D131,\"\")","v":""},null,null,null,null,null,null,null,null,null,null,null,null,null,null,null,null,null,null,null,null,null,null,null,null,null,null,null,null,null,null,null,null,null,null,null,null,null,null,null,null,null,null,null,null,null,null,null,null,null,null,null,null,null,null,null,null,null,null,null,null,null,null,null,null,null,null,null,3,null,null,null,null,null,{"$f":"IF(ISNUMBER(喪失者情報入力!D132),喪失者情報入力!D132,\"\")","v":""}]
[]
[null,null,null,null,null,null,null,null,null,null,null,null,null,null,null,null,null,null,null,null,null,null,null,null,null,null,null,null,null,null,null,null,null,null,null,null,null,null,null,null,null,null,null,null,null,null,null,null,null,null,null,null,null,null,null,null,null,null,null,null,null,null,null,null,null,null,null,null,null,null,null,null,null,null,null,null,null,null,null,null,null,null,null,null,null,null,null,null,null,null,null,null,null,null,null,null,null,null,null,null,null,null,null,null,"生年\n月日"]
[null,null,null,null,null,"番号",null,null,null,null,null,null,null,null,null,null,null,null,null,null,null,null,"氏名",null,null,null,null,null,null,null,null,null,null,null,null,null,{"$f":"IF(ISTEXT(喪失者情報入力!D130),喪失者情報入力!D130,\"\")","v":""}]
[]
[]
[]
[]
[null,null,null,null,null,null,null,null,null,null,null,null,null,null,null,null,null,null,null,null,null,null,"住所",null,null,null,null,null,"〒",null,null,{"$f":"IF(ISTEXT(喪失者情報入力!D144),喪失者情報入力!D144,\"\")","v":""},null,null,null,null,null,null,null,null,null,null,null,null,{"$f":"IF(ISTEXT(喪失者情報入力!D145),喪失者情報入力!D145,\"\")","v":""}]
[]
[]
[]
[]
[null,null,null,null,null,4,null,null,null,null,null,null,{"$f":"IF(ISTEXT(喪失者情報入力!D133),MID(喪失者情報入力!D133,1,1),IF(ISTEXT(喪失者情報入力!D134),MID(喪失者情報入力!D134,1,1),\"\"))","v":""},null,null,null,{"$f":"IF(ISTEXT(喪失者情報入力!D133),MID(喪失者情報入力!D133,2,1),IF(ISTEXT(喪失者情報入力!D134),MID(喪失者情報入力!D134,2,1),\"\"))","v":""},null,null,null,{"$f":"IF(ISTEXT(喪失者情報入力!D133),MID(喪失者情報入力!D133,3,1),IF(ISTEXT(喪失者情報入力!D134),MID(喪失者情報入力!D134,3,1),\"\"))","v":""},null,null,null,{"$f":"IF(ISTEXT(喪失者情報入力!D133),MID(喪失者情報入力!D133,4,1),IF(ISTEXT(喪失者情報入力!D134),MID(喪失者情報入力!D134,4,1),\"\"))","v":""},null,null,null,{"$f":"IF(ISTEXT(喪失者情報入力!D133),MID(喪失者情報入力!D133,5,1),IF(ISTEXT(喪失者情報入力!D134),MID(喪失者情報入力!D134,5,1),\"\"))","v":""},null,null,null,{"$f":"IF(ISTEXT(喪失者情報入力!D133),MID(喪失者情報入力!D133,6,1),IF(ISTEXT(喪失者情報入力!D134),MID(喪失者情報入力!D134,6,1),\"\"))","v":""},null,null,null,{"$f":"IF(ISTEXT(喪失者情報入力!D133),MID(喪失者情報入力!D133,7,1),IF(ISTEXT(喪失者情報入力!D134),MID(喪失者情報入力!D134,7,1),\"\"))","v":""},null,null,null,{"$f":"IF(ISTEXT(喪失者情報入力!D133),MID(喪失者情報入力!D133,8,1),IF(ISTEXT(喪失者情報入力!D134),MID(喪失者情報入力!D134,8,1),\"\"))","v":""},null,null,null,{"$f":"IF(ISTEXT(喪失者情報入力!D133),MID(喪失者情報入力!D133,9,1),IF(ISTEXT(喪失者情報入力!D134),MID(喪失者情報入力!D134,9,1),\"\"))","v":""},null,null,null,{"$f":"IF(ISTEXT(喪失者情報入力!D133),MID(喪失者情報入力!D133,10,1),IF(ISTEXT(喪失者情報入力!D134),MID(喪失者情報入力!D134,10,1),\"\"))","v":""},null,null,null,{"$f":"IF(ISTEXT(喪失者情報入力!D133),MID(喪失者情報入力!D133,11,1),\"\")","v":""},null,null,null,{"$f":"IF(ISTEXT(喪失者情報入力!D133),MID(喪失者情報入力!D133,12,1),\"\")","v":""},null,null,null,5,null,null,null,null,null,null,{"$f":"IF(ISNUMBER(喪失者情報入力!D137),喪失者情報入力!D137,\"\")","v":""},null,null,null,null,null,null,null,null,null,null,null,null,null,null,null,null,null,null,null,null,null,null,null,null,null,6,null,null,null,null,null,null,{"$f":"IF(喪失者情報入力!D135=7,7,\"\")","v":""},null,null,null,{"$f":"IF(喪失者情報入力!D135=7,喪失者情報入力!H133,\"\")","v":""}]
[]
[]
[null,null,null,null,null,"個人\n番号\n(基礎年金番号)",null,null,null,null,null,null,null,null,null,null,null,null,null,null,null,null,null,null,null,null,null,null,null,null,null,null,null,null,null,null,null,null,null,null,null,null,null,null,null,null,null,null,null,null,null,null,null,null,null,null,null,null,null,null,"喪失\n年月日",null,null,null,null,null,null,null,null,null,null,null,null,null,null,null,null,null,null,null,null,null,null,null,null,null,null,null,null,null,null,null,null,"喪失\n(不該当)\n原因",null,null,null,null,null,null,{"$f":"IF(ISNUMBER(喪失者情報入力!D135),IF(OR(喪失者情報入力!D135=4,喪失者情報入力!D135=5),喪失者情報入力!D135,\"\"),\"\")","v":""},null,null,null,{"$f":"IF(ISNUMBER(喪失者情報入力!D135),IF(OR(喪失者情報入力!D135=4,喪失者情報入力!D135=5),VLOOKUP(喪失者情報入力!D135,喪失者情報入力!G131:H132,2,0),\"\"),\"\")","v":""},null,null,null,null,null,null,null,null,null,null,null,null,{"$f":"IF(OR(喪失者情報入力!D135=4,喪失者情報入力!D135=5),喪失者情報入力!D136,\"\")","v":""}]
[]
[]
[]
[]
[]
[]
[null,null,null,null,null,null,null,null,null,null,null,null,null,null,null,null,null,null,null,null,null,null,null,null,null,null,null,null,null,null,null,null,null,null,null,null,null,null,null,null,null,null,null,null,null,null,null,null,null,null,null,null,null,null,null,null,null,null,null,null,null,null,null,null,null,null,null,null,null,null,null,null,null,null,null,null,null,null,null,null,null,null,null,null,null,null,null,null,null,null,null,null,null,null,null,null,null,null,null,null,{"$f":"IF(喪失者情報入力!D135=9,9,\"\")","v":""},null,null,null,{"$f":"IF(喪失者情報入力!D135=9,喪失者情報入力!H134,\"\")","v":""}]
[]
[]
[null,null,null,null,null,7,null,null,null,null,null,null,null,null,null,null,null,null,null,null,null,null,null,null,null,null,null,null,null,null,null,null,null,null,null,null,null,null,null,null,null,null,null,null,null,null,null,null,null,null,null,null,null,null,null,null,null,null,null,null,8,null,null,null,null,null,null,null,null,null,null,null,null,null,null,null,null,null,null,null,null,null,null,null,null,null,null,null,null,null,null,null,null,null,null,null,null,null,"組合\n使用欄",null,null,null,null,null,null,"標準報\n酬月額",null,null,null,null,null,null,"健",null,null,{"$f":"IF(ISNUMBER(喪失者情報入力!D138),喪失者情報入力!D138,\"\")","v":""},null,null,null,null,null,null,null,null,"千円",null,null,"年",null,null,{"$f":"IF(ISNUMBER(喪失者情報入力!D138),喪失者情報入力!G136,\"\")","v":""},null,null,null,null,null,null,null,null,"千円"]
[null,null,null,null,null,null,null,null,null,null,null,null,null,null,null,null,null,null,null,null,null,null,null,null,null,null,null,null,null,null,null,null,null,null,null,null,null,null,null,null,null,null,null,null,null,null,null,null,null,null,null,null,null,null,null,null,null,null,null,null,null,null,null,null,null,null,null,null,{"$f":"IF(ISTEXT(喪失者情報入力!D141),\"✔\",\"\")","v":""},null,null,null,"70歳以上被用者該当者"]
[null,null,null,null,null,null,null,null,null,null,null,null,null,null,null,null,{"$f":"IF(ISNUMBER(喪失者情報入力!D139),喪失者情報入力!D139,\"\")","v":""},null,null,null,null,{"$f":"IF(ISNUMBER(喪失者情報入力!D139),VLOOKUP(喪失者情報入力!D139,喪失者情報入力!G142:H144,2,0),\"\")","v":""}]
[null,null,null,null,null,"備考",null,null,null,null,null,null,null,null,null,null,null,null,null,null,null,null,null,null,null,null,null,null,null,null,null,null,null,null,null,null,null,null,null,null,null,null,null,null,null,null,null,null,null,null,null,null,null,null,null,null,null,null,null,null,"70歳\n不該当"]
[null,null,null,null,null,null,null,null,null,null,null,null,null,null,null,null,null,null,null,null,null,null,null,null,null,null,null,null,null,null,null,null,null,null,null,null,null,null,null,null,null,null,null,null,null,null,null,null,null,null,null,null,null,null,null,null,null,null,null,null,null,null,null,null,null,null,null,null,null,null,"(退職日又は死亡日を記入して下さい)"]
[]
[null,null,null,null,null,null,null,null,null,null,null,null,null,null,null,null,null,null,null,null,null,null,null,null,null,null,null,null,null,null,null,null,null,null,null,null,null,null,null,null,null,null,null,null,null,null,null,null,null,null,null,null,null,null,null,null,null,null,null,null,null,null,null,null,null,null,null,null,null,null,null,null,null,null,null,null,null,null,null,null,null,null,null,null,null,null,null,null,null,null,null,null,null,null,null,null,null,null,null,null,null,null,null,null,null,"保険証\n回収区分",null,null,null,null,null,null,null,null,null,null,{"$f":"IF(ISNUMBER(喪失者情報入力!D143),喪失者情報入力!D143,\"\")","v":""},null,null,null,null,{"$f":"IF(ISNUMBER(喪失者情報入力!D143),VLOOKUP(喪失者情報入力!D143,喪失者情報入力!G138:H140,2,0),\"\")","v":""}]
[null,null,null,null,null,null,null,null,null,null,null,null,null,null,null,null,null,null,null,null,null,{"$f":"IF(喪失者情報入力!D139=3,喪失者情報入力!D140,\"\")","v":""},null,null,null,null,null,null,null,null,null,null,null,null,null,null,null,null,null,null,null,null,null,null,null,null,null,null,null,null,null,null,null,null,null,null,null,null,null,null,null,null,null,null,null,null,null,"不該当\n年月日",null,null,null,null,null,null,{"$f":"IF(ISNUMBER(喪失者情報入力!D142),喪失者情報入力!D142,\"\")","v":""}]

{"sheet":"健保副","index":4,"n_rows":227,"n_cols":140,"rows_kept":227,"cut":false,"hidden":false,"merged":[[9,0,12,27],[15,0,53,4],[15,5,18,15],[15,16,18,23],[20,5,24,15],[20,16,22,69],[23,16,25,18],[23,19,25,31],[41,5,46,15],[41,16,46,61],[41,62,46,69],[47,5,47,15],[47,16,47,69],[48,5,53,15],[48,16,53,69],[23,32,25,69],[25,5,30,15],[26,16,32,69],[31,5,33,15],[33,16,33,69],[34,5,39,15],[34,16,39,69],[40,5,40,15],[40,16,40,69],[67,0,105,4],[67,5,69,7],[67,8,69,10],[67,11,79,21],[67,22,69,24],[67,25,69,27],[67,28,69,35],[67,36,69,103],[67,104,68,106],[69,104,74,109],[70,5,79,10],[70,22,74,27],[70,28,74,35],[70,36,74,103],[75,22,79,27],[80,12,92,59],[80,5,82,7],[80,8,82,11],[80,96,82,99],[80,100,82,103],[80,104,82,141],[75,28,77,30],[75,31,77,43],[78,28,79,43],[50,71,54,101],[55,71,64,130],[55,131,64,139],[67,107,68,109],[67,110,74,141],[83,117,89,141],[90,100,92,103],[80,60,82,62],[80,63,82,66],[80,67,92,92],[80,93,82,95],[90,104,92,141],[75,44,79,141],[93,98,105,104],[93,105,98,111],[93,112,98,114],[83,5,92,11],[83,60,92,66],[83,93,92,99],[83,100,89,103],[83,104,89,116],[99,116,105,120],[99,121,105,141],[100,16,105,20],[100,21,105,59],[100,67,105,73],[100,74,105,97],[95,16,99,20],[95,21,99,59],[96,5,105,11],[96,60,105,66],[97,70,99,97],[99,105,105,115],[93,115,98,123],[93,124,98,126],[93,127,98,129],[93,130,98,138],[93,139,98,141],[94,68,96,70],[94,72,96,97],[93,5,95,7],[93,8,95,11],[93,12,105,15],[93,16,94,58],[93,60,95,62],[93,63,95,66],[109,28,111,35],[109,36,111,103],[109,104,110,106],[109,107,110,109],[109,110,116,141],[111,104,116,109],[112,28,116,35],[112,36,116,103],[109,0,147,4],[109,5,111,7],[109,8,111,10],[109,11,121,21],[109,22,111,24],[109,25,111,27],[112,5,121,10],[112,22,116,27],[117,22,121,27],[137,16,141,20],[117,28,119,30],[117,31,119,43],[117,44,121,141],[120,28,121,43],[122,5,124,7],[122,8,124,11],[122,96,124,99],[122,100,124,103],[122,104,124,141],[125,5,134,11],[125,60,134,66],[125,93,134,99],[125,100,131,103],[125,104,131,116],[125,117,131,141],[132,100,134,103],[122,60,124,62],[122,63,124,66],[122,67,134,92],[122,93,124,95],[122,12,134,59],[135,115,140,123],[135,124,140,126],[135,127,140,129],[135,130,140,138],[135,139,140,141],[136,68,138,70],[136,72,138,97],[132,104,134,141],[135,5,137,7],[135,8,137,11],[135,12,147,15],[135,16,136,58],[135,60,137,62],[135,63,137,66],[135,98,147,104],[135,105,140,111],[135,112,140,114],[142,16,147,20],[142,21,147,59],[142,67,147,73],[142,74,147,97],[141,105,147,115],[141,116,147,120],[141,121,147,141],[151,0,189,4],[151,5,153,7],[151,8,153,10],[151,11,163,21],[151,22,153,24],[137,21,141,59],[138,5,147,11],[138,60,147,66],[139,70,141,97],[151,25,153,27],[151,28,153,35],[151,36,153,103],[154,5,163,10],[159,22,163,27],[159,28,161,30],[159,31,161,43],[159,44,163,141],[162,28,163,43],[164,96,166,99],[164,100,166,103],[164,104,166,141],[167,5,176,11],[167,60,176,66],[167,93,176,99],[154,22,158,27],[154,28,158,35],[154,36,158,103],[177,115,182,123],[177,124,182,126],[177,127,182,129],[177,130,182,138],[151,104,152,106],[151,107,152,109],[151,110,158,141],[153,104,158,109],[177,139,182,141],[178,68,180,70],[178,72,180,97],[164,5,166,7],[164,8,166,11],[174,104,176,141],[167,100,173,103],[167,104,173,116],[167,117,173,141],[174,100,176,103],[164,60,166,62],[164,63,166,66],[164,67,176,92],[164,93,166,95],[164,12,176,59],[183,116,189,120],[183,121,189,141],[184,16,189,20],[184,21,189,59],[184,67,189,73],[184,74,189,97],[179,16,183,20],[179,21,183,59],[180,5,189,11],[180,60,189,66],[181,70,183,97],[183,105,189,115],[177,5,179,7],[177,8,179,11],[177,12,189,15],[177,16,178,58],[177,60,179,62],[177,63,179,66],[177,98,189,104],[177,105,182,111],[177,112,182,114],[193,28,195,35],[193,36,195,103],[193,104,194,106],[193,107,194,109],[193,110,200,141],[195,104,200,109],[196,28,200,35],[196,36,200,103],[193,0,231,4],[193,5,195,7],[193,8,195,10],[193,11,205,21],[193,22,195,24],[193,25,195,27],[196,5,205,10],[196,22,200,27],[201,22,205,27],[221,16,225,20],[201,28,203,30],[201,31,203,43],[201,44,205,141],[204,28,205,43],[206,5,208,7],[206,8,208,11],[209,5,218,11],[209,60,218,66],[209,93,218,99],[209,100,215,103],[209,104,215,116],[206,100,208,103],[206,104,208,141],[206,96,208,99],[225,121,231,141],[226,16,231,20],[226,21,231,59],[226,67,231,73],[226,74,231,97],[219,130,224,138],[219,139,224,141],[209,117,215,141],[216,100,218,103],[206,60,208,62],[206,63,208,66],[206,67,218,92],[206,93,208,95],[206,12,218,59],[26,73,29,132],[1,18,7,108],[39,73,43,129],[221,21,225,59],[222,5,231,11],[222,60,231,66],[223,70,225,97],[225,105,231,115],[225,116,231,120],[219,115,224,123],[219,124,224,126],[219,127,224,129],[220,68,222,70],[220,72,222,97],[216,104,218,141],[219,5,221,7],[219,8,221,11],[219,12,231,15],[219,16,220,58],[219,60,221,62],[219,63,221,66],[219,98,231,104],[219,105,224,111],[219,112,224,114]]}
[]
[null,null,null,null,null,null,null,null,null,null,null,null,null,null,null,null,null,null,"健康保険　被保険者資格喪失確認通知書"]
[]
[]
[]
[]
[]
[]
[]
[{"$f":"基本情報登録!C2","v":"2022-11-02"}]
[]
[]
[]
[]
[]
["事業主記入欄",null,null,null,null,"記号",null,null,null,null,null,null,null,null,null,null,{"$f":"基本情報登録!C6","v":"532"}]
[]
[]
[]
[]
[]
[]
[]
[null,null,null,null,null,null,null,null,null,null,null,null,null,null,null,null,"〒",null,null,{"$f":"基本情報登録!C7","v":"542-0066"}]
[]
[null,null,null,null,null,"事業所\n所在地"]
[null,null,null,null,null,null,null,null,null,null,null,null,null,null,null,null,{"$f":"基本情報登録!C8","v":"大阪府大阪市中央区瓦屋町2-3-1"},null,null,null,null,null,null,null,null,null,null,null,null,null,null,null,null,null,null,null,null,null,null,null,null,null,null,null,null,null,null,null,null,null,null,null,null,null,null,null,null,null,null,null,null,null,null,null,null,null,null,null,null,null,null,null,null,"下記のとおり資格喪失が確認されたので通知します。"]
[]
[]
[]
[]
[]
[]
[]
[null,null,null,null,null,"事業所\n名称",null,null,null,null,null,null,null,null,null,null,{"$f":"基本情報登録!C9","v":"大阪自動車整備健康保険組合"}]
[]
[]
[]
[]
[null,null,null,null,null,null,null,null,null,null,null,null,null,null,null,null,null,null,null,null,null,null,null,null,null,null,null,null,null,null,null,null,null,null,null,null,null,null,null,null,null,null,null,null,null,null,null,null,null,null,null,null,null,null,null,null,null,null,null,null,null,null,null,null,null,null,null,null,null,null,null,null,null,"大阪自動車整備健康保険組合理事長"]
[]
[null,null,null,null,null,"事業主\n氏名",null,null,null,null,null,null,null,null,null,null,{"$f":"基本情報登録!C10","v":"理事長　健保　太郎"},null,null,null,null,null,null,null,null,null,null,null,null,null,null,null,null,null,null,null,null,null,null,null,null,null,null,null,null,null,null,null,null,null,null,null,null,null,null,null,null,null,null,null,null,null,"様"]
[]
[]
[]
[]
[]
[]
[null,null,null,null,null,"電話番号",null,null,null,null,null,null,null,null,null,null,{"$f":"基本情報登録!C11","v":"06-6762-6371"}]
[]
[null,null,null,null,null,null,null,null,null,null,null,null,null,null,null,null,null,null,null,null,null,null,null,null,null,null,null,null,null,null,null,null,null,null,null,null,null,null,null,null,null,null,null,null,null,null,null,null,null,null,null,null,null,null,null,null,null,null,null,null,null,null,null,null,null,null,null,null,null,null,null,"社会保険労務士記載欄"]
[]
[]
[]
[]
[]
[]
[]
[]
[]
[]
[]
[]
[]
[]
[]
[]
["被保険者１",null,null,null,null,1,null,null,null,null,null,{"$f":"IF(ISTEXT(喪失者情報入力!D3),喪失者情報入力!D3,\"\")","v":"1045"},null,null,null,null,null,null,null,null,null,null,2,null,null,null,null,null,"(ﾌﾘｶﾞﾅ)",null,null,null,null,null,null,null,{"$f":"IF(ISTEXT(喪失者情報入力!D5),喪失者情報入力!D5,\"\")","v":"ケンポ　サブロウ"},null,null,null,null,null,null,null,null,null,null,null,null,null,null,null,null,null,null,null,null,null,null,null,null,null,null,null,null,null,null,null,null,null,null,null,null,null,null,null,null,null,null,null,null,null,null,null,null,null,null,null,null,null,null,null,null,null,null,null,null,null,null,null,null,null,null,null,3,null,null,null,null,null,{"$f":"IF(ISNUMBER(喪失者情報入力!D6),喪失者情報入力!D6,\"\")","v":"1953-03-15"}]
[]
[null,null,null,null,null,null,null,null,null,null,null,null,null,null,null,null,null,null,null,null,null,null,null,null,null,null,null,null,null,null,null,null,null,null,null,null,null,null,null,null,null,null,null,null,null,null,null,null,null,null,null,null,null,null,null,null,null,null,null,null,null,null,null,null,null,null,null,null,null,null,null,null,null,null,null,null,null,null,null,null,null,null,null,null,null,null,null,null,null,null,null,null,null,null,null,null,null,null,null,null,null,null,null,null,"生年\n月日"]
[null,null,null,null,null,"番号",null,null,null,null,null,null,null,null,null,null,null,null,null,null,null,null,"氏名",null,null,null,null,null,null,null,null,null,null,null,null,null,{"$f":"IF(ISTEXT(喪失者情報入力!D4),喪失者情報入力!D4,\"\")","v":"健保　三朗"}]
[]
[]
[]
[]
[null,null,null,null,null,null,null,null,null,null,null,null,null,null,null,null,null,null,null,null,null,null,"住所",null,null,null,null,null,"〒",null,null,{"$f":"IF(ISTEXT(喪失者情報入力!D18),喪失者情報入力!D18,\"\")","v":"542-0066"},null,null,null,null,null,null,null,null,null,null,null,null,{"$f":"IF(ISTEXT(喪失者情報入力!D19),喪失者情報入力!D19,\"\")","v":"大阪府大阪市中央区瓦屋町2-3-1"}]
[]
[]
[]
[]
[null,null,null,null,null,4,null,null,null,null,null,null,null,null,null,null,null,null,null,null,null,null,null,null,null,null,null,null,null,null,null,null,null,null,null,null,null,null,null,null,null,null,null,null,null,null,null,null,null,null,null,null,null,null,null,null,null,null,null,null,5,null,null,null,null,null,null,{"$f":"IF(ISNUMBER(喪失者情報入力!D11),喪失者情報入力!D11,\"\")","v":"2018-04-01"},null,null,null,null,null,null,null,null,null,null,null,null,null,null,null,null,null,null,null,null,null,null,null,null,null,6,null,null,null,null,null,null,{"$f":"IF(喪失者情報入力!D9=7,7,\"\")","v":""},null,null,null,{"$f":"IF(喪失者情報入力!D9=7,喪失者情報入力!H7,\"\")","v":""}]
[]
[]
[null,null,null,null,null,"個人\n番号\n(基礎年金番号)",null,null,null,null,null,null,null,null,null,null,null,null,null,null,null,null,null,null,null,null,null,null,null,null,null,null,null,null,null,null,null,null,null,null,null,null,null,null,null,null,null,null,null,null,null,null,null,null,null,null,null,null,null,null,"喪失\n年月日",null,null,null,null,null,null,null,null,null,null,null,null,null,null,null,null,null,null,null,null,null,null,null,null,null,null,null,null,null,null,null,null,"喪失\n(不該当)\n原因",null,null,null,null,null,null,{"$f":"IF(ISNUMBER(喪失者情報入力!D9),IF(OR(喪失者情報入力!D9=4,喪失者情報入力!D9=5),喪失者情報入力!D9,\"\"),\"\")","v":4},null,null,null,{"$f":"IF(ISNUMBER(喪失者情報入力!D9),IF(OR(喪失者情報入力!D9=4,喪失者情報入力!D9=5),VLOOKUP(喪失者情報入力!D9,喪失者情報入力!G5:H6,2,0),\"\"),\"\")","v":"退職等"},null,null,null,null,null,null,null,null,null,null,null,null,{"$f":"IF(OR(喪失者情報入力!D9=4,喪失者情報入力!D9=5),喪失者情報入力!D10,\"\")","v":"2018-03-31"}]
[]
[]
[]
[]
[]
[]
[null,null,null,null,null,null,null,null,null,null,null,null,null,null,null,null,null,null,null,null,null,null,null,null,null,null,null,null,null,null,null,null,null,null,null,null,null,null,null,null,null,null,null,null,null,null,null,null,null,null,null,null,null,null,null,null,null,null,null,null,null,null,null,null,null,null,null,null,null,null,null,null,null,null,null,null,null,null,null,null,null,null,null,null,null,null,null,null,null,null,null,null,null,null,null,null,null,null,null,null,{"$f":"IF(喪失者情報入力!D9=9,9,\"\")","v":""},null,null,null,{"$f":"IF(喪失者情報入力!D9=9,喪失者情報入力!H8,\"\")","v":""}]
[]
[]
[null,null,null,null,null,7,null,null,null,null,null,null,null,null,null,null,null,null,null,null,null,null,null,null,null,null,null,null,null,null,null,null,null,null,null,null,null,null,null,null,null,null,null,null,null,null,null,null,null,null,null,null,null,null,null,null,null,null,null,null,8,null,null,null,null,null,null,null,null,null,null,null,null,null,null,null,null,null,null,null,null,null,null,null,null,null,null,null,null,null,null,null,null,null,null,null,null,null,"組合\n使用欄",null,null,null,null,null,null,"標準報\n酬月額",null,null,null,null,null,null,"健",null,null,{"$f":"IF(ISNUMBER(喪失者情報入力!D12),喪失者情報入力!D12,\"\")","v":680},null,null,null,null,null,null,null,null,"千円",null,null,"年",null,null,{"$f":"IF(ISNUMBER(喪失者情報入力!D12),喪失者情報入力!G10,\"\")","v":650},null,null,null,null,null,null,null,null,"千円"]
[null,null,null,null,null,null,null,null,null,null,null,null,null,null,null,null,null,null,null,null,null,null,null,null,null,null,null,null,null,null,null,null,null,null,null,null,null,null,null,null,null,null,null,null,null,null,null,null,null,null,null,null,null,null,null,null,null,null,null,null,null,null,null,null,null,null,null,null,{"$f":"IF(ISTEXT(喪失者情報入力!D15),\"✔\",\"\")","v":"✔"},null,null,null,"70歳以上被用者不該当者"]
[null,null,null,null,null,null,null,null,null,null,null,null,null,null,null,null,{"$f":"IF(ISNUMBER(喪失者情報入力!D13),喪失者情報入力!D13,\"\")","v":""},null,null,null,null,{"$f":"IF(ISNUMBER(喪失者情報入力!D13),VLOOKUP(喪失者情報入力!D13,喪失者情報入力!G16:H18,2,0),\"\")","v":""}]
[null,null,null,null,null,"備考",null,null,null,null,null,null,null,null,null,null,null,null,null,null,null,null,null,null,null,null,null,null,null,null,null,null,null,null,null,null,null,null,null,null,null,null,null,null,null,null,null,null,null,null,null,null,null,null,null,null,null,null,null,null,"70歳\n不該当"]
[null,null,null,null,null,null,null,null,null,null,null,null,null,null,null,null,null,null,null,null,null,null,null,null,null,null,null,null,null,null,null,null,null,null,null,null,null,null,null,null,null,null,null,null,null,null,null,null,null,null,null,null,null,null,null,null,null,null,null,null,null,null,null,null,null,null,null,null,null,null,"(退職日又は死亡日を記入して下さい)"]
[]
[null,null,null,null,null,null,null,null,null,null,null,null,null,null,null,null,null,null,null,null,null,null,null,null,null,null,null,null,null,null,null,null,null,null,null,null,null,null,null,null,null,null,null,null,null,null,null,null,null,null,null,null,null,null,null,null,null,null,null,null,null,null,null,null,null,null,null,null,null,null,null,null,null,null,null,null,null,null,null,null,null,null,null,null,null,null,null,null,null,null,null,null,null,null,null,null,null,null,null,null,null,null,null,null,null,"保険証\n回収区分",null,null,null,null,null,null,null,null,null,null,{"$f":"IF(ISNUMBER(喪失者情報入力!D17),喪失者情報入力!D17,\"\")","v":1},null,null,null,null,{"$f":"IF(ISNUMBER(喪失者情報入力!D17),VLOOKUP(喪失者情報入力!D17,喪失者情報入力!G12:H14,2,0),\"\")","v":"添付"}]
[null,null,null,null,null,null,null,null,null,null,null,null,null,null,null,null,null,null,null,null,null,{"$f":"IF(喪失者情報入力!D13=3,喪失者情報入力!D14,\"\")","v":""},null,null,null,null,null,null,null,null,null,null,null,null,null,null,null,null,null,null,null,null,null,null,null,null,null,null,null,null,null,null,null,null,null,null,null,null,null,null,null,null,null,null,null,null,null,"不該当\n年月日",null,null,null,null,null,null,{"$f":"IF(ISNUMBER(喪失者情報入力!D16),喪失者情報入力!D16,\"\")","v":"2019-06-20"}]
[]
[]
[]
[]
[]
[]
[]
[]
["被保険者２",null,null,null,null,1,null,null,null,null,null,{"$f":"IF(ISTEXT(喪失者情報入力!D45),喪失者情報入力!D45,\"\")","v":""},null,null,null,null,null,null,null,null,null,null,2,null,null,null,null,null,"(ﾌﾘｶﾞﾅ)",null,null,null,null,null,null,null,{"$f":"IF(ISTEXT(喪失者情報入力!D47),喪失者情報入力!D47,\"\")","v":""},null,null,null,null,null,null,null,null,null,null,null,null,null,null,null,null,null,null,null,null,null,null,null,null,null,null,null,null,null,null,null,null,null,null,null,null,null,null,null,null,null,null,null,null,null,null,null,null,null,null,null,null,null,null,null,null,null,null,null,null,null,null,null,null,null,null,null,3,null,null,null,null,null,{"$f":"IF(ISNUMBER(喪失者情報入力!D48),喪失者情報入力!D48,\"\")","v":""}]
[]
[null,null,null,null,null,null,null,null,null,null,null,null,null,null,null,null,null,null,null,null,null,null,null,null,null,null,null,null,null,null,null,null,null,null,null,null,null,null,null,null,null,null,null,null,null,null,null,null,null,null,null,null,null,null,null,null,null,null,null,null,null,null,null,null,null,null,null,null,null,null,null,null,null,null,null,null,null,null,null,null,null,null,null,null,null,null,null,null,null,null,null,null,null,null,null,null,null,null,null,null,null,null,null,null,"生年\n月日"]
[null,null,null,null,null,"番号",null,null,null,null,null,null,null,null,null,null,null,null,null,null,null,null,"氏名",null,null,null,null,null,null,null,null,null,null,null,null,null,{"$f":"IF(ISTEXT(喪失者情報入力!D46),喪失者情報入力!D46,\"\")","v":""}]
[]
[]
[]
[]
[null,null,null,null,null,null,null,null,null,null,null,null,null,null,null,null,null,null,null,null,null,null,"住所",null,null,null,null,null,"〒",null,null,{"$f":"IF(ISTEXT(喪失者情報入力!D60),喪失者情報入力!D60,\"\")","v":""},null,null,null,null,null,null,null,null,null,null,null,null,{"$f":"IF(ISTEXT(喪失者情報入力!D61),喪失者情報入力!D61,\"\")","v":""}]
[]
[]
[]
[]
[null,null,null,null,null,4,null,null,null,null,null,null,null,null,null,null,null,null,null,null,null,null,null,null,null,null,null,null,null,null,null,null,null,null,null,null,null,null,null,null,null,null,null,null,null,null,null,null,null,null,null,null,null,null,null,null,null,null,null,null,5,null,null,null,null,null,null,{"$f":"IF(ISNUMBER(喪失者情報入力!D53),喪失者情報入力!D53,\"\")","v":""},null,null,null,null,null,null,null,null,null,null,null,null,null,null,null,null,null,null,null,null,null,null,null,null,null,6,null,null,null,null,null,null,{"$f":"IF(喪失者情報入力!D51=7,7,\"\")","v":""},null,null,null,{"$f":"IF(喪失者情報入力!D51=7,喪失者情報入力!H49,\"\")","v":""}]
[]
[]
[null,null,null,null,null,"個人\n番号\n(基礎年金番号)",null,null,null,null,null,null,null,null,null,null,null,null,null,null,null,null,null,null,null,null,null,null,null,null,null,null,null,null,null,null,null,null,null,null,null,null,null,null,null,null,null,null,null,null,null,null,null,null,null,null,null,null,null,null,"喪失\n年月日",null,null,null,null,null,null,null,null,null,null,null,null,null,null,null,null,null,null,null,null,null,null,null,null,null,null,null,null,null,null,null,null,"喪失\n(不該当)\n原因",null,null,null,null,null,null,{"$f":"IF(ISNUMBER(喪失者情報入力!D51),IF(OR(喪失者情報入力!D51=4,喪失者情報入力!D51=5),喪失者情報入力!D51,\"\"),\"\")","v":""},null,null,null,{"$f":"IF(ISNUMBER(喪失者情報入力!D51),IF(OR(喪失者情報入力!D51=4,喪失者情報入力!D51=5),VLOOKUP(喪失者情報入力!D51,喪失者情報入力!G47:H48,2,0),\"\"),\"\")","v":""},null,null,null,null,null,null,null,null,null,null,null,null,{"$f":"IF(OR(喪失者情報入力!D51=4,喪失者情報入力!D51=5),喪失者情報入力!D52,\"\")","v":""}]
[]
[]
[]
[]
[]
[]
[null,null,null,null,null,null,null,null,null,null,null,null,null,null,null,null,null,null,null,null,null,null,null,null,null,null,null,null,null,null,null,null,null,null,null,null,null,null,null,null,null,null,null,null,null,null,null,null,null,null,null,null,null,null,null,null,null,null,null,null,null,null,null,null,null,null,null,null,null,null,null,null,null,null,null,null,null,null,null,null,null,null,null,null,null,null,null,null,null,null,null,null,null,null,null,null,null,null,null,null,{"$f":"IF(喪失者情報入力!D51=9,9,\"\")","v":""},null,null,null,{"$f":"IF(喪失者情報入力!D51=9,喪失者情報入力!H50,\"\")","v":""}]
[]
[]
[null,null,null,null,null,7,null,null,null,null,null,null,null,null,null,null,null,null,null,null,null,null,null,null,null,null,null,null,null,null,null,null,null,null,null,null,null,null,null,null,null,null,null,null,null,null,null,null,null,null,null,null,null,null,null,null,null,null,null,null,8,null,null,null,null,null,null,null,null,null,null,null,null,null,null,null,null,null,null,null,null,null,null,null,null,null,null,null,null,null,null,null,null,null,null,null,null,null,"組合\n使用欄",null,null,null,null,null,null,"標準報\n酬月額",null,null,null,null,null,null,"健",null,null,{"$f":"IF(ISNUMBER(喪失者情報入力!D54),喪失者情報入力!D54,\"\")","v":""},null,null,null,null,null,null,null,null,"千円",null,null,"年",null,null,{"$f":"IF(ISNUMBER(喪失者情報入力!D54),喪失者情報入力!G52,\"\")","v":""},null,null,null,null,null,null,null,null,"千円"]
[null,null,null,null,null,null,null,null,null,null,null,null,null,null,null,null,null,null,null,null,null,null,null,null,null,null,null,null,null,null,null,null,null,null,null,null,null,null,null,null,null,null,null,null,null,null,null,null,null,null,null,null,null,null,null,null,null,null,null,null,null,null,null,null,null,null,null,null,{"$f":"IF(ISTEXT(喪失者情報入力!D57),\"✔\",\"\")","v":""},null,null,null,"70歳以上被用者該当者"]
[null,null,null,null,null,null,null,null,null,null,null,null,null,null,null,null,{"$f":"IF(ISNUMBER(喪失者情報入力!D55),喪失者情報入力!D55,\"\")","v":""},null,null,null,null,{"$f":"IF(ISNUMBER(喪失者情報入力!D55),VLOOKUP(喪失者情報入力!D55,喪失者情報入力!G58:H60,2,0),\"\")","v":""}]
[null,null,null,null,null,"備考",null,null,null,null,null,null,null,null,null,null,null,null,null,null,null,null,null,null,null,null,null,null,null,null,null,null,null,null,null,null,null,null,null,null,null,null,null,null,null,null,null,null,null,null,null,null,null,null,null,null,null,null,null,null,"70歳\n不該当"]
[null,null,null,null,null,null,null,null,null,null,null,null,null,null,null,null,null,null,null,null,null,null,null,null,null,null,null,null,null,null,null,null,null,null,null,null,null,null,null,null,null,null,null,null,null,null,null,null,null,null,null,null,null,null,null,null,null,null,null,null,null,null,null,null,null,null,null,null,null,null,"(退職日又は死亡日を記入して下さい)"]
[]
[null,null,null,null,null,null,null,null,null,null,null,null,null,null,null,null,null,null,null,null,null,null,null,null,null,null,null,null,null,null,null,null,null,null,null,null,null,null,null,null,null,null,null,null,null,null,null,null,null,null,null,null,null,null,null,null,null,null,null,null,null,null,null,null,null,null,null,null,null,null,null,null,null,null,null,null,null,null,null,null,null,null,null,null,null,null,null,null,null,null,null,null,null,null,null,null,null,null,null,null,null,null,null,null,null,"保険証\n回収区分",null,null,null,null,null,null,null,null,null,null,{"$f":"IF(ISNUMBER(喪失者情報入力!D59),喪失者情報入力!D59,\"\")","v":""},null,null,null,null,{"$f":"IF(ISNUMBER(喪失者情報入力!D59),VLOOKUP(喪失者情報入力!D59,喪失者情報入力!G54:H56,2,0),\"\")","v":""}]
[null,null,null,null,null,null,null,null,null,null,null,null,null,null,null,null,null,null,null,null,null,{"$f":"IF(喪失者情報入力!D55=3,喪失者情報入力!D56,\"\")","v":""},null,null,null,null,null,null,null,null,null,null,null,null,null,null,null,null,null,null,null,null,null,null,null,null,null,null,null,null,null,null,null,null,null,null,null,null,null,null,null,null,null,null,null,null,null,"不該当\n年月日",null,null,null,null,null,null,{"$f":"IF(ISNUMBER(喪失者情報入力!D58),喪失者情報入力!D58,\"\")","v":""}]
[]
[]
[]
[]
[]
[]
[]
[]
["被保険者３",null,null,null,null,1,null,null,null,null,null,{"$f":"IF(ISTEXT(喪失者情報入力!D87),喪失者情報入力!D87,\"\")","v":""},null,null,null,null,null,null,null,null,null,null,2,null,null,null,null,null,"(ﾌﾘｶﾞﾅ)",null,null,null,null,null,null,null,{"$f":"IF(ISTEXT(喪失者情報入力!D89),喪失者情報入力!D89,\"\")","v":""},null,null,null,null,null,null,null,null,null,null,null,null,null,null,null,null,null,null,null,null,null,null,null,null,null,null,null,null,null,null,null,null,null,null,null,null,null,null,null,null,null,null,null,null,null,null,null,null,null,null,null,null,null,null,null,null,null,null,null,null,null,null,null,null,null,null,null,3,null,null,null,null,null,{"$f":"IF(ISNUMBER(喪失者情報入力!D90),喪失者情報入力!D90,\"\")","v":""}]
[]
[null,null,null,null,null,null,null,null,null,null,null,null,null,null,null,null,null,null,null,null,null,null,null,null,null,null,null,null,null,null,null,null,null,null,null,null,null,null,null,null,null,null,null,null,null,null,null,null,null,null,null,null,null,null,null,null,null,null,null,null,null,null,null,null,null,null,null,null,null,null,null,null,null,null,null,null,null,null,null,null,null,null,null,null,null,null,null,null,null,null,null,null,null,null,null,null,null,null,null,null,null,null,null,null,"生年\n月日"]
[null,null,null,null,null,"番号",null,null,null,null,null,null,null,null,null,null,null,null,null,null,null,null,"氏名",null,null,null,null,null,null,null,null,null,null,null,null,null,{"$f":"IF(ISTEXT(喪失者情報入力!D88),喪失者情報入力!D88,\"\")","v":""}]
[]
[]
[]
[]
[null,null,null,null,null,null,null,null,null,null,null,null,null,null,null,null,null,null,null,null,null,null,"住所",null,null,null,null,null,"〒",null,null,{"$f":"IF(ISTEXT(喪失者情報入力!D102),喪失者情報入力!D102,\"\")","v":""},null,null,null,null,null,null,null,null,null,null,null,null,{"$f":"IF(ISTEXT(喪失者情報入力!D103),喪失者情報入力!D103,\"\")","v":""}]
[]
[]
[]
[]
[null,null,null,null,null,4,null,null,null,null,null,null,null,null,null,null,null,null,null,null,null,null,null,null,null,null,null,null,null,null,null,null,null,null,null,null,null,null,null,null,null,null,null,null,null,null,null,null,null,null,null,null,null,null,null,null,null,null,null,null,5,null,null,null,null,null,null,{"$f":"IF(ISNUMBER(喪失者情報入力!D95),喪失者情報入力!D95,\"\")","v":""},null,null,null,null,null,null,null,null,null,null,null,null,null,null,null,null,null,null,null,null,null,null,null,null,null,6,null,null,null,null,null,null,{"$f":"IF(喪失者情報入力!D93=7,7,\"\")","v":""},null,null,null,{"$f":"IF(喪失者情報入力!D93=7,喪失者情報入力!H91,\"\")","v":""}]
[]
[]
[null,null,null,null,null,"個人\n番号\n(基礎年金番号)",null,null,null,null,null,null,null,null,null,null,null,null,null,null,null,null,null,null,null,null,null,null,null,null,null,null,null,null,null,null,null,null,null,null,null,null,null,null,null,null,null,null,null,null,null,null,null,null,null,null,null,null,null,null,"喪失\n年月日",null,null,null,null,null,null,null,null,null,null,null,null,null,null,null,null,null,null,null,null,null,null,null,null,null,null,null,null,null,null,null,null,"喪失\n(不該当)\n原因",null,null,null,null,null,null,{"$f":"IF(ISNUMBER(喪失者情報入力!D93),IF(OR(喪失者情報入力!D93=4,喪失者情報入力!D93=5),喪失者情報入力!D93,\"\"),\"\")","v":""},null,null,null,{"$f":"IF(ISNUMBER(喪失者情報入力!D93),IF(OR(喪失者情報入力!D93=4,喪失者情報入力!D93=5),VLOOKUP(喪失者情報入力!D93,喪失者情報入力!G89:H90,2,0),\"\"),\"\")","v":""},null,null,null,null,null,null,null,null,null,null,null,null,{"$f":"IF(OR(喪失者情報入力!D93=4,喪失者情報入力!D93=5),喪失者情報入力!D94,\"\")","v":""}]
[]
[]
[]
[]
[]
[]
[null,null,null,null,null,null,null,null,null,null,null,null,null,null,null,null,null,null,null,null,null,null,null,null,null,null,null,null,null,null,null,null,null,null,null,null,null,null,null,null,null,null,null,null,null,null,null,null,null,null,null,null,null,null,null,null,null,null,null,null,null,null,null,null,null,null,null,null,null,null,null,null,null,null,null,null,null,null,null,null,null,null,null,null,null,null,null,null,null,null,null,null,null,null,null,null,null,null,null,null,{"$f":"IF(喪失者情報入力!D93=9,9,\"\")","v":""},null,null,null,{"$f":"IF(喪失者情報入力!D93=9,喪失者情報入力!H92,\"\")","v":""}]
[]
[]
[null,null,null,null,null,7,null,null,null,null,null,null,null,null,null,null,null,null,null,null,null,null,null,null,null,null,null,null,null,null,null,null,null,null,null,null,null,null,null,null,null,null,null,null,null,null,null,null,null,null,null,null,null,null,null,null,null,null,null,null,8,null,null,null,null,null,null,null,null,null,null,null,null,null,null,null,null,null,null,null,null,null,null,null,null,null,null,null,null,null,null,null,null,null,null,null,null,null,"組合\n使用欄",null,null,null,null,null,null,"標準報\n酬月額",null,null,null,null,null,null,"健",null,null,{"$f":"IF(ISNUMBER(喪失者情報入力!D96),喪失者情報入力!D96,\"\")","v":""},null,null,null,null,null,null,null,null,"千円",null,null,"年",null,null,{"$f":"IF(ISNUMBER(喪失者情報入力!D96),喪失者情報入力!G94,\"\")","v":""},null,null,null,null,null,null,null,null,"千円"]
[null,null,null,null,null,null,null,null,null,null,null,null,null,null,null,null,null,null,null,null,null,null,null,null,null,null,null,null,null,null,null,null,null,null,null,null,null,null,null,null,null,null,null,null,null,null,null,null,null,null,null,null,null,null,null,null,null,null,null,null,null,null,null,null,null,null,null,null,{"$f":"IF(ISTEXT(喪失者情報入力!D99),\"✔\",\"\")","v":""},null,null,null,"70歳以上被用者該当者"]
[null,null,null,null,null,null,null,null,null,null,null,null,null,null,null,null,{"$f":"IF(ISNUMBER(喪失者情報入力!D97),喪失者情報入力!D97,\"\")","v":""},null,null,null,null,{"$f":"IF(ISNUMBER(喪失者情報入力!D97),VLOOKUP(喪失者情報入力!D97,喪失者情報入力!G100:H102,2,0),\"\")","v":""}]
[null,null,null,null,null,"備考",null,null,null,null,null,null,null,null,null,null,null,null,null,null,null,null,null,null,null,null,null,null,null,null,null,null,null,null,null,null,null,null,null,null,null,null,null,null,null,null,null,null,null,null,null,null,null,null,null,null,null,null,null,null,"70歳\n不該当"]
[null,null,null,null,null,null,null,null,null,null,null,null,null,null,null,null,null,null,null,null,null,null,null,null,null,null,null,null,null,null,null,null,null,null,null,null,null,null,null,null,null,null,null,null,null,null,null,null,null,null,null,null,null,null,null,null,null,null,null,null,null,null,null,null,null,null,null,null,null,null,"(退職日又は死亡日を記入して下さい)"]
[]
[null,null,null,null,null,null,null,null,null,null,null,null,null,null,null,null,null,null,null,null,null,null,null,null,null,null,null,null,null,null,null,null,null,null,null,null,null,null,null,null,null,null,null,null,null,null,null,null,null,null,null,null,null,null,null,null,null,null,null,null,null,null,null,null,null,null,null,null,null,null,null,null,null,null,null,null,null,null,null,null,null,null,null,null,null,null,null,null,null,null,null,null,null,null,null,null,null,null,null,null,null,null,null,null,null,"保険証\n回収区分",null,null,null,null,null,null,null,null,null,null,{"$f":"IF(ISNUMBER(喪失者情報入力!D101),喪失者情報入力!D101,\"\")","v":""},null,null,null,null,{"$f":"IF(ISNUMBER(喪失者情報入力!D101),VLOOKUP(喪失者情報入力!D101,喪失者情報入力!G96:H98,2,0),\"\")","v":""}]
[null,null,null,null,null,null,null,null,null,null,null,null,null,null,null,null,null,null,null,null,null,{"$f":"IF(喪失者情報入力!D97=3,喪失者情報入力!D98,\"\")","v":""},null,null,null,null,null,null,null,null,null,null,null,null,null,null,null,null,null,null,null,null,null,null,null,null,null,null,null,null,null,null,null,null,null,null,null,null,null,null,null,null,null,null,null,null,null,"不該当\n年月日",null,null,null,null,null,null,{"$f":"IF(ISNUMBER(喪失者情報入力!D100),喪失者情報入力!D100,\"\")","v":""}]
[]
[]
[]
[]
[]
[]
[]
[]
["被保険者４",null,null,null,null,1,null,null,null,null,null,{"$f":"IF(ISTEXT(喪失者情報入力!D129),喪失者情報入力!D129,\"\")","v":""},null,null,null,null,null,null,null,null,null,null,2,null,null,null,null,null,"(ﾌﾘｶﾞﾅ)",null,null,null,null,null,null,null,{"$f":"IF(ISTEXT(喪失者情報入力!D131),喪失者情報入力!D131,\"\")","v":""},null,null,null,null,null,null,null,null,null,null,null,null,null,null,null,null,null,null,null,null,null,null,null,null,null,null,null,null,null,null,null,null,null,null,null,null,null,null,null,null,null,null,null,null,null,null,null,null,null,null,null,null,null,null,null,null,null,null,null,null,null,null,null,null,null,null,null,3,null,null,null,null,null,{"$f":"IF(ISNUMBER(喪失者情報入力!D132),喪失者情報入力!D132,\"\")","v":""}]
[]
[null,null,null,null,null,null,null,null,null,null,null,null,null,null,null,null,null,null,null,null,null,null,null,null,null,null,null,null,null,null,null,null,null,null,null,null,null,null,null,null,null,null,null,null,null,null,null,null,null,null,null,null,null,null,null,null,null,null,null,null,null,null,null,null,null,null,null,null,null,null,null,null,null,null,null,null,null,null,null,null,null,null,null,null,null,null,null,null,null,null,null,null,null,null,null,null,null,null,null,null,null,null,null,null,"生年\n月日"]
[null,null,null,null,null,"番号",null,null,null,null,null,null,null,null,null,null,null,null,null,null,null,null,"氏名",null,null,null,null,null,null,null,null,null,null,null,null,null,{"$f":"IF(ISTEXT(喪失者情報入力!D130),喪失者情報入力!D130,\"\")","v":""}]
[]
[]
[]
[]
[null,null,null,null,null,null,null,null,null,null,null,null,null,null,null,null,null,null,null,null,null,null,"住所",null,null,null,null,null,"〒",null,null,{"$f":"IF(ISTEXT(喪失者情報入力!D144),喪失者情報入力!D144,\"\")","v":""},null,null,null,null,null,null,null,null,null,null,null,null,{"$f":"IF(ISTEXT(喪失者情報入力!D145),喪失者情報入力!D145,\"\")","v":""}]
[]
[]
[]
[]
[null,null,null,null,null,4,null,null,null,null,null,null,null,null,null,null,null,null,null,null,null,null,null,null,null,null,null,null,null,null,null,null,null,null,null,null,null,null,null,null,null,null,null,null,null,null,null,null,null,null,null,null,null,null,null,null,null,null,null,null,5,null,null,null,null,null,null,{"$f":"IF(ISNUMBER(喪失者情報入力!D137),喪失者情報入力!D137,\"\")","v":""},null,null,null,null,null,null,null,null,null,null,null,null,null,null,null,null,null,null,null,null,null,null,null,null,null,6,null,null,null,null,null,null,{"$f":"IF(喪失者情報入力!D135=7,7,\"\")","v":""},null,null,null,{"$f":"IF(喪失者情報入力!D135=7,喪失者情報入力!H133,\"\")","v":""}]
[]
[]
[null,null,null,null,null,"個人\n番号\n(基礎年金番号)",null,null,null,null,null,null,null,null,null,null,null,null,null,null,null,null,null,null,null,null,null,null,null,null,null,null,null,null,null,null,null,null,null,null,null,null,null,null,null,null,null,null,null,null,null,null,null,null,null,null,null,null,null,null,"喪失\n年月日",null,null,null,null,null,null,null,null,null,null,null,null,null,null,null,null,null,null,null,null,null,null,null,null,null,null,null,null,null,null,null,null,"喪失\n(不該当)\n原因",null,null,null,null,null,null,{"$f":"IF(ISNUMBER(喪失者情報入力!D135),IF(OR(喪失者情報入力!D135=4,喪失者情報入力!D135=5),喪失者情報入力!D135,\"\"),\"\")","v":""},null,null,null,{"$f":"IF(ISNUMBER(喪失者情報入力!D135),IF(OR(喪失者情報入力!D135=4,喪失者情報入力!D135=5),VLOOKUP(喪失者情報入力!D135,喪失者情報入力!G131:H132,2,0),\"\"),\"\")","v":""},null,null,null,null,null,null,null,null,null,null,null,null,{"$f":"IF(OR(喪失者情報入力!D135=4,喪失者情報入力!D135=5),喪失者情報入力!D136,\"\")","v":""}]
[]
[]
[]
[]
[]
[]
[null,null,null,null,null,null,null,null,null,null,null,null,null,null,null,null,null,null,null,null,null,null,null,null,null,null,null,null,null,null,null,null,null,null,null,null,null,null,null,null,null,null,null,null,null,null,null,null,null,null,null,null,null,null,null,null,null,null,null,null,null,null,null,null,null,null,null,null,null,null,null,null,null,null,null,null,null,null,null,null,null,null,null,null,null,null,null,null,null,null,null,null,null,null,null,null,null,null,null,null,{"$f":"IF(喪失者情報入力!D135=9,9,\"\")","v":""},null,null,null,{"$f":"IF(喪失者情報入力!D135=9,喪失者情報入力!H134,\"\")","v":""}]
[]
[]
[null,null,null,null,null,7,null,null,null,null,null,null,null,null,null,null,null,null,null,null,null,null,null,null,null,null,null,null,null,null,null,null,null,null,null,null,null,null,null,null,null,null,null,null,null,null,null,null,null,null,null,null,null,null,null,null,null,null,null,null,8,null,null,null,null,null,null,null,null,null,null,null,null,null,null,null,null,null,null,null,null,null,null,null,null,null,null,null,null,null,null,null,null,null,null,null,null,null,"組合\n使用欄",null,null,null,null,null,null,"標準報\n酬月額",null,null,null,null,null,null,"健",null,null,{"$f":"IF(ISNUMBER(喪失者情報入力!D138),喪失者情報入力!D138,\"\")","v":""},null,null,null,null,null,null,null,null,"千円",null,null,"年",null,null,{"$f":"IF(ISNUMBER(喪失者情報入力!D138),喪失者情報入力!G136,\"\")","v":""},null,null,null,null,null,null,null,null,"千円"]
[null,null,null,null,null,null,null,null,null,null,null,null,null,null,null,null,null,null,null,null,null,null,null,null,null,null,null,null,null,null,null,null,null,null,null,null,null,null,null,null,null,null,null,null,null,null,null,null,null,null,null,null,null,null,null,null,null,null,null,null,null,null,null,null,null,null,null,null,{"$f":"IF(ISTEXT(喪失者情報入力!D141),\"✔\",\"\")","v":""},null,null,null,"70歳以上被用者該当者"]
[null,null,null,null,null,null,null,null,null,null,null,null,null,null,null,null,{"$f":"IF(ISNUMBER(喪失者情報入力!D139),喪失者情報入力!D139,\"\")","v":""},null,null,null,null,{"$f":"IF(ISNUMBER(喪失者情報入力!D139),VLOOKUP(喪失者情報入力!D139,喪失者情報入力!G142:H144,2,0),\"\")","v":""}]
[null,null,null,null,null,"備考",null,null,null,null,null,null,null,null,null,null,null,null,null,null,null,null,null,null,null,null,null,null,null,null,null,null,null,null,null,null,null,null,null,null,null,null,null,null,null,null,null,null,null,null,null,null,null,null,null,null,null,null,null,null,"70歳\n不該当"]
[null,null,null,null,null,null,null,null,null,null,null,null,null,null,null,null,null,null,null,null,null,null,null,null,null,null,null,null,null,null,null,null,null,null,null,null,null,null,null,null,null,null,null,null,null,null,null,null,null,null,null,null,null,null,null,null,null,null,null,null,null,null,null,null,null,null,null,null,null,null,"(退職日又は死亡日を記入して下さい)"]
[]
[null,null,null,null,null,null,null,null,null,null,null,null,null,null,null,null,null,null,null,null,null,null,null,null,null,null,null,null,null,null,null,null,null,null,null,null,null,null,null,null,null,null,null,null,null,null,null,null,null,null,null,null,null,null,null,null,null,null,null,null,null,null,null,null,null,null,null,null,null,null,null,null,null,null,null,null,null,null,null,null,null,null,null,null,null,null,null,null,null,null,null,null,null,null,null,null,null,null,null,null,null,null,null,null,null,"保険証\n回収区分",null,null,null,null,null,null,null,null,null,null,{"$f":"IF(ISNUMBER(喪失者情報入力!D143),喪失者情報入力!D143,\"\")","v":""},null,null,null,null,{"$f":"IF(ISNUMBER(喪失者情報入力!D143),VLOOKUP(喪失者情報入力!D143,喪失者情報入力!G138:H140,2,0),\"\")","v":""}]
[null,null,null,null,null,null,null,null,null,null,null,null,null,null,null,null,null,null,null,null,null,{"$f":"IF(喪失者情報入力!D139=3,喪失者情報入力!D140,\"\")","v":""},null,null,null,null,null,null,null,null,null,null,null,null,null,null,null,null,null,null,null,null,null,null,null,null,null,null,null,null,null,null,null,null,null,null,null,null,null,null,null,null,null,null,null,null,null,"不該当\n年月日",null,null,null,null,null,null,{"$f":"IF(ISNUMBER(喪失者情報入力!D142),喪失者情報入力!D142,\"\")","v":""}]

{"sheet":"年金正","index":5,"n_rows":227,"n_cols":118,"rows_kept":227,"cut":false,"hidden":false,"merged":[[0,0,2,11],[1,24,7,38],[15,45,18,56],[9,0,12,27],[1,40,7,99],[216,104,218,141],[219,5,221,7],[219,8,221,11],[219,12,231,15],[219,16,220,58],[15,57,18,69],[15,29,18,32],[15,33,18,44],[15,16,18,28],[226,21,231,59],[226,67,231,73],[226,74,231,97],[3,0,5,2],[221,21,225,59],[222,5,231,11],[222,60,231,66],[223,70,225,97],[220,68,222,70],[220,72,222,97],[3,3,5,5],[3,6,5,8],[3,9,5,11],[193,110,205,141],[195,104,205,109],[196,22,205,27],[198,28,205,35],[206,40,218,43],[206,44,218,47],[206,48,218,51],[206,5,208,7],[206,8,208,11],[206,12,218,15],[206,16,218,19],[206,20,218,23],[206,24,218,27],[198,36,205,103],[206,96,208,99],[206,100,208,103],[206,104,208,141],[209,5,218,11],[209,60,218,66],[209,93,218,99],[209,100,215,103],[209,104,215,116],[209,117,215,141],[216,100,218,103],[193,104,194,106],[193,107,194,109],[193,0,231,4],[193,5,195,7],[193,8,195,10],[193,11,205,21],[193,22,195,24],[193,25,195,27],[196,5,205,10],[221,16,225,20],[193,28,197,35],[193,36,197,103],[219,60,221,62],[219,63,221,66],[206,52,218,55],[206,56,218,59],[206,60,208,62],[206,63,208,66],[206,67,218,92],[206,93,208,95],[206,28,218,31],[206,32,218,35],[206,36,218,39],[226,16,231,20],[184,67,189,73],[184,74,189,97],[179,16,183,20],[179,21,183,59],[180,5,189,11],[180,60,189,66],[181,70,183,97],[178,68,180,70],[178,72,180,97],[177,5,179,7],[177,8,179,11],[177,12,189,15],[177,16,178,58],[177,60,179,62],[177,63,179,66],[184,16,189,20],[184,21,189,59],[164,93,166,95],[174,104,176,141],[167,5,176,11],[167,60,176,66],[167,93,176,99],[164,28,176,31],[164,32,176,35],[164,36,176,39],[164,40,176,43],[164,44,176,47],[164,48,176,51],[164,5,166,7],[164,8,166,11],[151,107,152,109],[142,16,147,20],[142,21,147,59],[142,67,147,73],[142,74,147,97],[151,110,163,141],[153,104,163,109],[154,5,163,10],[164,96,166,99],[164,100,166,103],[164,104,166,141],[164,12,176,15],[164,16,176,19],[164,20,176,23],[164,24,176,27],[167,100,173,103],[167,104,173,116],[167,117,173,141],[174,100,176,103],[164,52,176,55],[164,56,176,59],[164,60,166,62],[164,63,166,66],[164,67,176,92],[135,5,137,7],[135,8,137,11],[135,12,147,15],[135,16,136,58],[135,60,137,62],[135,63,137,66],[135,98,147,141],[151,0,189,4],[151,5,153,7],[151,8,153,10],[151,11,163,21],[151,22,153,24],[137,21,141,59],[138,5,147,11],[138,60,147,66],[139,70,141,97],[151,28,155,35],[151,36,155,103],[154,22,163,27],[156,28,163,35],[156,36,163,103],[177,98,189,141],[151,25,153,27],[151,104,152,106],[109,110,121,141],[111,104,121,109],[112,22,121,27],[114,28,121,35],[122,5,124,7],[122,8,124,11],[122,12,134,15],[122,16,134,19],[122,20,134,23],[122,24,134,27],[114,36,121,103],[122,96,124,99],[122,100,124,103],[122,104,124,141],[125,5,134,11],[125,60,134,66],[125,93,134,99],[125,100,131,103],[125,104,131,116],[125,117,131,141],[132,100,134,103],[122,52,134,55],[122,56,134,59],[122,60,124,62],[109,104,110,106],[109,107,110,109],[109,0,147,4],[109,5,111,7],[109,8,111,10],[109,11,121,21],[109,22,111,24],[109,25,111,27],[112,5,121,10],[137,16,141,20],[109,28,113,35],[109,36,113,103],[122,63,124,66],[122,67,134,92],[122,93,124,95],[122,28,134,31],[122,32,134,35],[122,36,134,39],[122,40,134,43],[122,44,134,47],[122,48,134,51],[136,68,138,70],[136,72,138,97],[132,104,134,141],[100,74,105,97],[95,16,99,20],[95,21,99,59],[96,5,105,11],[96,60,105,66],[97,70,99,97],[94,68,96,70],[94,72,96,97],[80,16,92,19],[80,20,92,23],[80,24,92,27],[80,96,82,99],[93,5,95,7],[93,8,95,11],[93,12,105,15],[93,16,94,58],[93,60,95,62],[93,63,95,66],[100,16,105,20],[100,21,105,59],[100,67,105,73],[80,104,82,141],[83,5,92,11],[83,60,92,66],[83,93,92,99],[83,100,89,103],[83,104,89,116],[83,117,89,141],[90,100,92,103],[80,52,92,55],[80,56,92,59],[80,60,82,62],[80,63,82,66],[80,67,92,92],[80,93,82,95],[80,28,92,31],[80,32,92,35],[80,36,92,39],[80,40,92,43],[80,44,92,47],[80,48,92,51],[90,104,92,141],[80,100,82,103],[55,71,64,130],[55,131,64,139],[67,0,105,4],[67,5,69,7],[67,8,69,10],[67,11,79,21],[67,22,69,24],[67,25,69,27],[15,0,53,4],[15,5,18,15],[70,22,79,27],[67,36,71,103],[72,36,79,103],[67,28,71,35],[72,28,79,35],[69,104,79,109],[67,110,79,141],[93,98,105,141],[67,104,68,106],[67,107,68,109],[70,5,79,10],[80,5,82,7],[80,8,82,11],[80,12,92,15],[219,98,231,141],[41,5,46,15],[41,16,46,61],[41,62,46,69],[47,5,47,15],[47,16,47,69],[48,5,53,15],[48,16,53,69],[23,32,25,69],[24,105,52,139],[25,5,30,15],[26,16,32,69],[31,5,33,15],[33,16,33,69],[34,5,39,15],[34,16,39,69],[40,5,40,15],[40,16,40,69],[20,5,24,15],[20,16,22,69],[20,105,23,139],[23,16,25,18],[23,19,25,31],[50,71,54,101]]}
["様式コード"]
[null,null,null,null,null,null,null,null,null,null,null,null,null,null,null,null,null,null,null,null,null,null,null,null,"厚生年金保険",null,null,null,null,null,null,null,null,null,null,null,null,null,null,null,"被保険者資格喪失届\n70歳以上被用者不該当届"]
[]
[2,null,null,2,null,null,0,null,null,1]
[]
[]
[]
[]
[]
[{"$f":"基本情報登録!C2","v":"2022-11-02"}]
[]
[]
[]
[]
[]
["事業主記入欄",null,null,null,null,"整理記号",null,null,null,null,null,null,null,null,null,null,{"$f":"基本情報登録!C3","v":"南"},null,null,null,null,null,null,null,null,null,null,null,null,"-",null,null,null,{"$f":"基本情報登録!C4","v":"ＷＥＤ"},null,null,null,null,null,null,null,null,null,null,null,"事業所番号",null,null,null,null,null,null,null,null,null,null,null,{"$f":"基本情報登録!C5","v":0}]
[]
[]
[]
[]
[null,null,null,null,null,null,null,null,null,null,null,null,null,null,null,null,"届書記入の個人番号(基礎年金番号)に誤りがないことを確認しました。",null,null,null,null,null,null,null,null,null,null,null,null,null,null,null,null,null,null,null,null,null,null,null,null,null,null,null,null,null,null,null,null,null,null,null,null,null,null,null,null,null,null,null,null,null,null,null,null,null,null,null,null,null,null,null,null,null,null,null,null,null,null,null,null,null,null,null,null,null,null,null,null,null,null,null,null,null,null,null,null,null,null,null,null,null,null,null,null,"受付印"]
[]
[]
[null,null,null,null,null,null,null,null,null,null,null,null,null,null,null,null,"〒",null,null,{"$f":"基本情報登録!C7","v":"542-0066"}]
[]
[null,null,null,null,null,"事業所\n所在地"]
[null,null,null,null,null,null,null,null,null,null,null,null,null,null,null,null,{"$f":"基本情報登録!C8","v":"大阪府大阪市中央区瓦屋町2-3-1"}]
[]
[]
[]
[]
[]
[]
[]
[null,null,null,null,null,"事業所\n名称",null,null,null,null,null,null,null,null,null,null,{"$f":"基本情報登録!C9","v":"大阪自動車整備健康保険組合"}]
[]
[]
[]
[]
[]
[]
[null,null,null,null,null,"事業主\n氏名",null,null,null,null,null,null,null,null,null,null,{"$f":"基本情報登録!C10","v":"理事長　健保　太郎"}]
[]
[]
[]
[]
[]
[]
[null,null,null,null,null,"電話番号",null,null,null,null,null,null,null,null,null,null,{"$f":"基本情報登録!C11","v":"06-6762-6371"}]
[]
[null,null,null,null,null,null,null,null,null,null,null,null,null,null,null,null,null,null,null,null,null,null,null,null,null,null,null,null,null,null,null,null,null,null,null,null,null,null,null,null,null,null,null,null,null,null,null,null,null,null,null,null,null,null,null,null,null,null,null,null,null,null,null,null,null,null,null,null,null,null,null,"社会保険労務士記載欄"]
[]
[]
[]
[]
[]
[]
[]
[]
[]
[]
[]
[]
[]
[]
[]
[]
["被保険者１",null,null,null,null,1,null,null,null,null,null,{"$f":"IF(ISTEXT(喪失者情報入力!D3),IF(ISTEXT(喪失者情報入力!D20),喪失者情報入力!D20,喪失者情報入力!D3),\"\")","v":"1035"},null,null,null,null,null,null,null,null,null,null,2,null,null,null,null,null,"(ﾌﾘｶﾞﾅ)",null,null,null,null,null,null,null,{"$f":"IF(ISTEXT(喪失者情報入力!D5),喪失者情報入力!D5,\"\")","v":"ケンポ　サブロウ"},null,null,null,null,null,null,null,null,null,null,null,null,null,null,null,null,null,null,null,null,null,null,null,null,null,null,null,null,null,null,null,null,null,null,null,null,null,null,null,null,null,null,null,null,null,null,null,null,null,null,null,null,null,null,null,null,null,null,null,null,null,null,null,null,null,null,null,3,null,null,null,null,null,{"$f":"IF(ISNUMBER(喪失者情報入力!D6),喪失者情報入力!D6,\"\")","v":"1953-03-15"}]
[]
[null,null,null,null,null,null,null,null,null,null,null,null,null,null,null,null,null,null,null,null,null,null,null,null,null,null,null,null,null,null,null,null,null,null,null,null,null,null,null,null,null,null,null,null,null,null,null,null,null,null,null,null,null,null,null,null,null,null,null,null,null,null,null,null,null,null,null,null,null,null,null,null,null,null,null,null,null,null,null,null,null,null,null,null,null,null,null,null,null,null,null,null,null,null,null,null,null,null,null,null,null,null,null,null,"生年\n月日"]
[null,null,null,null,null,"番号",null,null,null,null,null,null,null,null,null,null,null,null,null,null,null,null,"氏名"]
[]
[null,null,null,null,null,null,null,null,null,null,null,null,null,null,null,null,null,null,null,null,null,null,null,null,null,null,null,null,null,null,null,null,null,null,null,null,{"$f":"IF(ISTEXT(喪失者情報入力!D4),喪失者情報入力!D4,\"\")","v":"健保　三朗"}]
[]
[]
[]
[]
[]
[]
[]
[null,null,null,null,null,4,null,null,null,null,null,null,{"$f":"IF(ISTEXT(喪失者情報入力!D7),MID(喪失者情報入力!D7,1,1),IF(ISTEXT(喪失者情報入力!D8),MID(喪失者情報入力!D8,1,1),\"\"))","v":"1"},null,null,null,{"$f":"IF(ISTEXT(喪失者情報入力!D7),MID(喪失者情報入力!D7,2,1),IF(ISTEXT(喪失者情報入力!D8),MID(喪失者情報入力!D8,2,1),\"\"))","v":"2"},null,null,null,{"$f":"IF(ISTEXT(喪失者情報入力!D7),MID(喪失者情報入力!D7,3,1),IF(ISTEXT(喪失者情報入力!D8),MID(喪失者情報入力!D8,3,1),\"\"))","v":"3"},null,null,null,{"$f":"IF(ISTEXT(喪失者情報入力!D7),MID(喪失者情報入力!D7,4,1),IF(ISTEXT(喪失者情報入力!D8),MID(喪失者情報入力!D8,4,1),\"\"))","v":"4"},null,null,null,{"$f":"IF(ISTEXT(喪失者情報入力!D7),MID(喪失者情報入力!D7,5,1),IF(ISTEXT(喪失者情報入力!D8),MID(喪失者情報入力!D8,5,1),\"\"))","v":"5"},null,null,null,{"$f":"IF(ISTEXT(喪失者情報入力!D7),MID(喪失者情報入力!D7,6,1),IF(ISTEXT(喪失者情報入力!D8),MID(喪失者情報入力!D8,6,1),\"\"))","v":"6"},null,null,null,{"$f":"IF(ISTEXT(喪失者情報入力!D7),MID(喪失者情報入力!D7,7,1),IF(ISTEXT(喪失者情報入力!D8),MID(喪失者情報入力!D8,7,1),\"\"))","v":"7"},null,null,null,{"$f":"IF(ISTEXT(喪失者情報入力!D7),MID(喪失者情報入力!D7,8,1),IF(ISTEXT(喪失者情報入力!D8),MID(喪失者情報入力!D8,8,1),\"\"))","v":"8"},null,null,null,{"$f":"IF(ISTEXT(喪失者情報入力!D7),MID(喪失者情報入力!D7,9,1),IF(ISTEXT(喪失者情報入力!D8),MID(喪失者情報入力!D8,9,1),\"\"))","v":"9"},null,null,null,{"$f":"IF(ISTEXT(喪失者情報入力!D7),MID(喪失者情報入力!D7,10,1),IF(ISTEXT(喪失者情報入力!D8),MID(喪失者情報入力!D8,10,1),\"\"))","v":"0"},null,null,null,{"$f":"IF(ISTEXT(喪失者情報入力!D7),MID(喪失者情報入力!D7,11,1),\"\")","v":"1"},null,null,null,{"$f":"IF(ISTEXT(喪失者情報入力!D7),MID(喪失者情報入力!D7,12,1),\"\")","v":"2"},null,null,null,5,null,null,null,null,null,null,{"$f":"IF(ISNUMBER(喪失者情報入力!D11),喪失者情報入力!D11,\"\")","v":"2018-04-01"},null,null,null,null,null,null,null,null,null,null,null,null,null,null,null,null,null,null,null,null,null,null,null,null,null,6,null,null,null,null,null,null,{"$f":"IF(喪失者情報入力!D9=7,7,\"\")","v":""},null,null,null,{"$f":"IF(喪失者情報入力!D9=7,喪失者情報入力!H7,\"\")","v":""}]
[]
[]
[null,null,null,null,null,"個人\n番号\n(基礎年金番号)",null,null,null,null,null,null,null,null,null,null,null,null,null,null,null,null,null,null,null,null,null,null,null,null,null,null,null,null,null,null,null,null,null,null,null,null,null,null,null,null,null,null,null,null,null,null,null,null,null,null,null,null,null,null,"喪失\n年月日",null,null,null,null,null,null,null,null,null,null,null,null,null,null,null,null,null,null,null,null,null,null,null,null,null,null,null,null,null,null,null,null,"喪失\n(不該当)\n原因",null,null,null,null,null,null,{"$f":"IF(ISNUMBER(喪失者情報入力!D9),IF(OR(喪失者情報入力!D9=4,喪失者情報入力!D9=5),喪失者情報入力!D9,\"\"),\"\")","v":4},null,null,null,{"$f":"IF(ISNUMBER(喪失者情報入力!D9),IF(OR(喪失者情報入力!D9=4,喪失者情報入力!D9=5),VLOOKUP(喪失者情報入力!D9,喪失者情報入力!G5:H6,2,0),\"\"),\"\")","v":"退職等"},null,null,null,null,null,null,null,null,null,null,null,null,{"$f":"IF(OR(喪失者情報入力!D9=4,喪失者情報入力!D9=5),喪失者情報入力!D10,\"\")","v":"2018-03-31"}]
[]
[]
[]
[]
[]
[]
[null,null,null,null,null,null,null,null,null,null,null,null,null,null,null,null,null,null,null,null,null,null,null,null,null,null,null,null,null,null,null,null,null,null,null,null,null,null,null,null,null,null,null,null,null,null,null,null,null,null,null,null,null,null,null,null,null,null,null,null,null,null,null,null,null,null,null,null,null,null,null,null,null,null,null,null,null,null,null,null,null,null,null,null,null,null,null,null,null,null,null,null,null,null,null,null,null,null,null,null,{"$f":"IF(喪失者情報入力!D9=9,9,\"\")","v":""},null,null,null,{"$f":"IF(喪失者情報入力!D9=9,喪失者情報入力!H8,\"\")","v":""}]
[]
[]
[null,null,null,null,null,7,null,null,null,null,null,null,null,null,null,null,null,null,null,null,null,null,null,null,null,null,null,null,null,null,null,null,null,null,null,null,null,null,null,null,null,null,null,null,null,null,null,null,null,null,null,null,null,null,null,null,null,null,null,null,8]
[null,null,null,null,null,null,null,null,null,null,null,null,null,null,null,null,null,null,null,null,null,null,null,null,null,null,null,null,null,null,null,null,null,null,null,null,null,null,null,null,null,null,null,null,null,null,null,null,null,null,null,null,null,null,null,null,null,null,null,null,null,null,null,null,null,null,null,null,{"$f":"IF(ISTEXT(喪失者情報入力!D15),\"✔\",\"\")","v":"✔"},null,null,null,"70歳以上被用者不該当者"]
[null,null,null,null,null,null,null,null,null,null,null,null,null,null,null,null,{"$f":"IF(ISNUMBER(喪失者情報入力!D13),喪失者情報入力!D13,\"\")","v":""},null,null,null,null,{"$f":"IF(ISNUMBER(喪失者情報入力!D13),VLOOKUP(喪失者情報入力!D13,喪失者情報入力!G16:H18,2,0),\"\")","v":""}]
[null,null,null,null,null,"備考",null,null,null,null,null,null,null,null,null,null,null,null,null,null,null,null,null,null,null,null,null,null,null,null,null,null,null,null,null,null,null,null,null,null,null,null,null,null,null,null,null,null,null,null,null,null,null,null,null,null,null,null,null,null,"70歳\n不該当"]
[null,null,null,null,null,null,null,null,null,null,null,null,null,null,null,null,null,null,null,null,null,null,null,null,null,null,null,null,null,null,null,null,null,null,null,null,null,null,null,null,null,null,null,null,null,null,null,null,null,null,null,null,null,null,null,null,null,null,null,null,null,null,null,null,null,null,null,null,null,null,"(退職日又は死亡日を記入して下さい)"]
[]
[]
[null,null,null,null,null,null,null,null,null,null,null,null,null,null,null,null,null,null,null,null,null,{"$f":"IF(喪失者情報入力!D13=3,喪失者情報入力!D14,\"\")","v":""},null,null,null,null,null,null,null,null,null,null,null,null,null,null,null,null,null,null,null,null,null,null,null,null,null,null,null,null,null,null,null,null,null,null,null,null,null,null,null,null,null,null,null,null,null,"不該当\n年月日",null,null,null,null,null,null,{"$f":"IF(ISNUMBER(喪失者情報入力!D16),喪失者情報入力!D16,\"\")","v":"2019-06-20"}]
[]
[]
[]
[]
[]
[]
[]
[]
["被保険者２",null,null,null,null,1,null,null,null,null,null,{"$f":"IF(ISTEXT(喪失者情報入力!D45),IF(ISTEXT(喪失者情報入力!D62),喪失者情報入力!D62,喪失者情報入力!D45),\"\")","v":""},null,null,null,null,null,null,null,null,null,null,2,null,null,null,null,null,"(ﾌﾘｶﾞﾅ)",null,null,null,null,null,null,null,{"$f":"IF(ISTEXT(喪失者情報入力!D47),喪失者情報入力!D47,\"\")","v":""},null,null,null,null,null,null,null,null,null,null,null,null,null,null,null,null,null,null,null,null,null,null,null,null,null,null,null,null,null,null,null,null,null,null,null,null,null,null,null,null,null,null,null,null,null,null,null,null,null,null,null,null,null,null,null,null,null,null,null,null,null,null,null,null,null,null,null,3,null,null,null,null,null,{"$f":"IF(ISNUMBER(喪失者情報入力!D48),喪失者情報入力!D48,\"\")","v":""}]
[]
[null,null,null,null,null,null,null,null,null,null,null,null,null,null,null,null,null,null,null,null,null,null,null,null,null,null,null,null,null,null,null,null,null,null,null,null,null,null,null,null,null,null,null,null,null,null,null,null,null,null,null,null,null,null,null,null,null,null,null,null,null,null,null,null,null,null,null,null,null,null,null,null,null,null,null,null,null,null,null,null,null,null,null,null,null,null,null,null,null,null,null,null,null,null,null,null,null,null,null,null,null,null,null,null,"生年\n月日"]
[null,null,null,null,null,"番号",null,null,null,null,null,null,null,null,null,null,null,null,null,null,null,null,"氏名"]
[]
[null,null,null,null,null,null,null,null,null,null,null,null,null,null,null,null,null,null,null,null,null,null,null,null,null,null,null,null,null,null,null,null,null,null,null,null,{"$f":"IF(ISTEXT(喪失者情報入力!D46),喪失者情報入力!D46,\"\")","v":""}]
[]
[]
[]
[]
[]
[]
[]
[null,null,null,null,null,4,null,null,null,null,null,null,{"$f":"IF(ISTEXT(喪失者情報入力!D49),MID(喪失者情報入力!D49,1,1),IF(ISTEXT(喪失者情報入力!D50),MID(喪失者情報入力!D50,1,1),\"\"))","v":""},null,null,null,{"$f":"IF(ISTEXT(喪失者情報入力!D49),MID(喪失者情報入力!D49,2,1),IF(ISTEXT(喪失者情報入力!D50),MID(喪失者情報入力!D50,2,1),\"\"))","v":""},null,null,null,{"$f":"IF(ISTEXT(喪失者情報入力!D49),MID(喪失者情報入力!D49,3,1),IF(ISTEXT(喪失者情報入力!D50),MID(喪失者情報入力!D50,3,1),\"\"))","v":""},null,null,null,{"$f":"IF(ISTEXT(喪失者情報入力!D49),MID(喪失者情報入力!D49,4,1),IF(ISTEXT(喪失者情報入力!D50),MID(喪失者情報入力!D50,4,1),\"\"))","v":""},null,null,null,{"$f":"IF(ISTEXT(喪失者情報入力!D49),MID(喪失者情報入力!D49,5,1),IF(ISTEXT(喪失者情報入力!D50),MID(喪失者情報入力!D50,5,1),\"\"))","v":""},null,null,null,{"$f":"IF(ISTEXT(喪失者情報入力!D49),MID(喪失者情報入力!D49,6,1),IF(ISTEXT(喪失者情報入力!D50),MID(喪失者情報入力!D50,6,1),\"\"))","v":""},null,null,null,{"$f":"IF(ISTEXT(喪失者情報入力!D49),MID(喪失者情報入力!D49,7,1),IF(ISTEXT(喪失者情報入力!D50),MID(喪失者情報入力!D50,7,1),\"\"))","v":""},null,null,null,{"$f":"IF(ISTEXT(喪失者情報入力!D49),MID(喪失者情報入力!D49,8,1),IF(ISTEXT(喪失者情報入力!D50),MID(喪失者情報入力!D50,8,1),\"\"))","v":""},null,null,null,{"$f":"IF(ISTEXT(喪失者情報入力!D49),MID(喪失者情報入力!D49,9,1),IF(ISTEXT(喪失者情報入力!D50),MID(喪失者情報入力!D50,9,1),\"\"))","v":""},null,null,null,{"$f":"IF(ISTEXT(喪失者情報入力!D49),MID(喪失者情報入力!D49,10,1),IF(ISTEXT(喪失者情報入力!D50),MID(喪失者情報入力!D50,10,1),\"\"))","v":""},null,null,null,{"$f":"IF(ISTEXT(喪失者情報入力!D49),MID(喪失者情報入力!D49,11,1),\"\")","v":""},null,null,null,{"$f":"IF(ISTEXT(喪失者情報入力!D49),MID(喪失者情報入力!D49,12,1),\"\")","v":""},null,null,null,5,null,null,null,null,null,null,{"$f":"IF(ISNUMBER(喪失者情報入力!D53),喪失者情報入力!D53,\"\")","v":""},null,null,null,null,null,null,null,null,null,null,null,null,null,null,null,null,null,null,null,null,null,null,null,null,null,6,null,null,null,null,null,null,{"$f":"IF(喪失者情報入力!D51=7,7,\"\")","v":""},null,null,null,{"$f":"IF(喪失者情報入力!D51=7,喪失者情報入力!H49,\"\")","v":""}]
[]
[]
[null,null,null,null,null,"個人\n番号\n(基礎年金番号)",null,null,null,null,null,null,null,null,null,null,null,null,null,null,null,null,null,null,null,null,null,null,null,null,null,null,null,null,null,null,null,null,null,null,null,null,null,null,null,null,null,null,null,null,null,null,null,null,null,null,null,null,null,null,"喪失\n年月日",null,null,null,null,null,null,null,null,null,null,null,null,null,null,null,null,null,null,null,null,null,null,null,null,null,null,null,null,null,null,null,null,"喪失\n(不該当)\n原因",null,null,null,null,null,null,{"$f":"IF(ISNUMBER(喪失者情報入力!D51),IF(OR(喪失者情報入力!D51=4,喪失者情報入力!D51=5),喪失者情報入力!D51,\"\"),\"\")","v":""},null,null,null,{"$f":"IF(ISNUMBER(喪失者情報入力!D51),IF(OR(喪失者情報入力!D51=4,喪失者情報入力!D51=5),VLOOKUP(喪失者情報入力!D51,喪失者情報入力!G47:H48,2,0),\"\"),\"\")","v":""},null,null,null,null,null,null,null,null,null,null,null,null,{"$f":"IF(OR(喪失者情報入力!D51=4,喪失者情報入力!D51=5),喪失者情報入力!D52,\"\")","v":""}]
[]
[]
[]
[]
[]
[]
[null,null,null,null,null,null,null,null,null,null,null,null,null,null,null,null,null,null,null,null,null,null,null,null,null,null,null,null,null,null,null,null,null,null,null,null,null,null,null,null,null,null,null,null,null,null,null,null,null,null,null,null,null,null,null,null,null,null,null,null,null,null,null,null,null,null,null,null,null,null,null,null,null,null,null,null,null,null,null,null,null,null,null,null,null,null,null,null,null,null,null,null,null,null,null,null,null,null,null,null,{"$f":"IF(喪失者情報入力!D51=9,9,\"\")","v":""},null,null,null,{"$f":"IF(喪失者情報入力!D51=9,喪失者情報入力!H50,\"\")","v":""}]
[]
[]
[null,null,null,null,null,7,null,null,null,null,null,null,null,null,null,null,null,null,null,null,null,null,null,null,null,null,null,null,null,null,null,null,null,null,null,null,null,null,null,null,null,null,null,null,null,null,null,null,null,null,null,null,null,null,null,null,null,null,null,null,8]
[null,null,null,null,null,null,null,null,null,null,null,null,null,null,null,null,null,null,null,null,null,null,null,null,null,null,null,null,null,null,null,null,null,null,null,null,null,null,null,null,null,null,null,null,null,null,null,null,null,null,null,null,null,null,null,null,null,null,null,null,null,null,null,null,null,null,null,null,{"$f":"IF(ISTEXT(喪失者情報入力!D57),\"✔\",\"\")","v":""},null,null,null,"70歳以上被用者該当者"]
[null,null,null,null,null,null,null,null,null,null,null,null,null,null,null,null,{"$f":"IF(ISNUMBER(喪失者情報入力!D55),喪失者情報入力!D55,\"\")","v":""},null,null,null,null,{"$f":"IF(ISNUMBER(喪失者情報入力!D55),VLOOKUP(喪失者情報入力!D55,喪失者情報入力!G58:H60,2,0),\"\")","v":""}]
[null,null,null,null,null,"備考",null,null,null,null,null,null,null,null,null,null,null,null,null,null,null,null,null,null,null,null,null,null,null,null,null,null,null,null,null,null,null,null,null,null,null,null,null,null,null,null,null,null,null,null,null,null,null,null,null,null,null,null,null,null,"70歳\n不該当"]
[null,null,null,null,null,null,null,null,null,null,null,null,null,null,null,null,null,null,null,null,null,null,null,null,null,null,null,null,null,null,null,null,null,null,null,null,null,null,null,null,null,null,null,null,null,null,null,null,null,null,null,null,null,null,null,null,null,null,null,null,null,null,null,null,null,null,null,null,null,null,"(退職日又は死亡日を記入して下さい)"]
[]
[]
[null,null,null,null,null,null,null,null,null,null,null,null,null,null,null,null,null,null,null,null,null,{"$f":"IF(喪失者情報入力!D55=3,喪失者情報入力!D56,\"\")","v":""},null,null,null,null,null,null,null,null,null,null,null,null,null,null,null,null,null,null,null,null,null,null,null,null,null,null,null,null,null,null,null,null,null,null,null,null,null,null,null,null,null,null,null,null,null,"不該当\n年月日",null,null,null,null,null,null,{"$f":"IF(ISNUMBER(喪失者情報入力!D58),喪失者情報入力!D58,\"\")","v":""}]
[]
[]
[]
[]
[]
[]
[]
[]
["被保険者３",null,null,null,null,1,null,null,null,null,null,{"$f":"IF(ISTEXT(喪失者情報入力!D87),IF(ISTEXT(喪失者情報入力!D104),喪失者情報入力!D104,喪失者情報入力!D87),\"\")","v":""},null,null,null,null,null,null,null,null,null,null,2,null,null,null,null,null,"(ﾌﾘｶﾞﾅ)",null,null,null,null,null,null,null,{"$f":"IF(ISTEXT(喪失者情報入力!D89),喪失者情報入力!D89,\"\")","v":""},null,null,null,null,null,null,null,null,null,null,null,null,null,null,null,null,null,null,null,null,null,null,null,null,null,null,null,null,null,null,null,null,null,null,null,null,null,null,null,null,null,null,null,null,null,null,null,null,null,null,null,null,null,null,null,null,null,null,null,null,null,null,null,null,null,null,null,3,null,null,null,null,null,{"$f":"IF(ISNUMBER(喪失者情報入力!D90),喪失者情報入力!D90,\"\")","v":""}]
[]
[null,null,null,null,null,null,null,null,null,null,null,null,null,null,null,null,null,null,null,null,null,null,null,null,null,null,null,null,null,null,null,null,null,null,null,null,null,null,null,null,null,null,null,null,null,null,null,null,null,null,null,null,null,null,null,null,null,null,null,null,null,null,null,null,null,null,null,null,null,null,null,null,null,null,null,null,null,null,null,null,null,null,null,null,null,null,null,null,null,null,null,null,null,null,null,null,null,null,null,null,null,null,null,null,"生年\n月日"]
[null,null,null,null,null,"番号",null,null,null,null,null,null,null,null,null,null,null,null,null,null,null,null,"氏名"]
[]
[null,null,null,null,null,null,null,null,null,null,null,null,null,null,null,null,null,null,null,null,null,null,null,null,null,null,null,null,null,null,null,null,null,null,null,null,{"$f":"IF(ISTEXT(喪失者情報入力!D88),喪失者情報入力!D88,\"\")","v":""}]
[]
[]
[]
[]
[]
[]
[]
[null,null,null,null,null,4,null,null,null,null,null,null,{"$f":"IF(ISTEXT(喪失者情報入力!D91),MID(喪失者情報入力!D91,1,1),IF(ISTEXT(喪失者情報入力!D92),MID(喪失者情報入力!D92,1,1),\"\"))","v":""},null,null,null,{"$f":"IF(ISTEXT(喪失者情報入力!D91),MID(喪失者情報入力!D91,2,1),IF(ISTEXT(喪失者情報入力!D92),MID(喪失者情報入力!D92,2,1),\"\"))","v":""},null,null,null,{"$f":"IF(ISTEXT(喪失者情報入力!D91),MID(喪失者情報入力!D91,3,1),IF(ISTEXT(喪失者情報入力!D92),MID(喪失者情報入力!D92,3,1),\"\"))","v":""},null,null,null,{"$f":"IF(ISTEXT(喪失者情報入力!D91),MID(喪失者情報入力!D91,4,1),IF(ISTEXT(喪失者情報入力!D92),MID(喪失者情報入力!D92,4,1),\"\"))","v":""},null,null,null,{"$f":"IF(ISTEXT(喪失者情報入力!D91),MID(喪失者情報入力!D91,5,1),IF(ISTEXT(喪失者情報入力!D92),MID(喪失者情報入力!D92,5,1),\"\"))","v":""},null,null,null,{"$f":"IF(ISTEXT(喪失者情報入力!D91),MID(喪失者情報入力!D91,6,1),IF(ISTEXT(喪失者情報入力!D92),MID(喪失者情報入力!D92,6,1),\"\"))","v":""},null,null,null,{"$f":"IF(ISTEXT(喪失者情報入力!D91),MID(喪失者情報入力!D91,7,1),IF(ISTEXT(喪失者情報入力!D92),MID(喪失者情報入力!D92,7,1),\"\"))","v":""},null,null,null,{"$f":"IF(ISTEXT(喪失者情報入力!D91),MID(喪失者情報入力!D91,8,1),IF(ISTEXT(喪失者情報入力!D92),MID(喪失者情報入力!D92,8,1),\"\"))","v":""},null,null,null,{"$f":"IF(ISTEXT(喪失者情報入力!D91),MID(喪失者情報入力!D91,9,1),IF(ISTEXT(喪失者情報入力!D92),MID(喪失者情報入力!D92,9,1),\"\"))","v":""},null,null,null,{"$f":"IF(ISTEXT(喪失者情報入力!D91),MID(喪失者情報入力!D91,10,1),IF(ISTEXT(喪失者情報入力!D92),MID(喪失者情報入力!D92,10,1),\"\"))","v":""},null,null,null,{"$f":"IF(ISTEXT(喪失者情報入力!D91),MID(喪失者情報入力!D91,11,1),\"\")","v":""},null,null,null,{"$f":"IF(ISTEXT(喪失者情報入力!D91),MID(喪失者情報入力!D91,12,1),\"\")","v":""},null,null,null,5,null,null,null,null,null,null,{"$f":"IF(ISNUMBER(喪失者情報入力!D95),喪失者情報入力!D95,\"\")","v":""},null,null,null,null,null,null,null,null,null,null,null,null,null,null,null,null,null,null,null,null,null,null,null,null,null,6,null,null,null,null,null,null,{"$f":"IF(喪失者情報入力!D93=7,7,\"\")","v":""},null,null,null,{"$f":"IF(喪失者情報入力!D93=7,喪失者情報入力!H91,\"\")","v":""}]
[]
[]
[null,null,null,null,null,"個人\n番号\n(基礎年金番号)",null,null,null,null,null,null,null,null,null,null,null,null,null,null,null,null,null,null,null,null,null,null,null,null,null,null,null,null,null,null,null,null,null,null,null,null,null,null,null,null,null,null,null,null,null,null,null,null,null,null,null,null,null,null,"喪失\n年月日",null,null,null,null,null,null,null,null,null,null,null,null,null,null,null,null,null,null,null,null,null,null,null,null,null,null,null,null,null,null,null,null,"喪失\n(不該当)\n原因",null,null,null,null,null,null,{"$f":"IF(ISNUMBER(喪失者情報入力!D93),IF(OR(喪失者情報入力!D93=4,喪失者情報入力!D93=5),喪失者情報入力!D93,\"\"),\"\")","v":""},null,null,null,{"$f":"IF(ISNUMBER(喪失者情報入力!D93),IF(OR(喪失者情報入力!D93=4,喪失者情報入力!D93=5),VLOOKUP(喪失者情報入力!D93,喪失者情報入力!G89:H90,2,0),\"\"),\"\")","v":""},null,null,null,null,null,null,null,null,null,null,null,null,{"$f":"IF(OR(喪失者情報入力!D93=4,喪失者情報入力!D93=5),喪失者情報入力!D94,\"\")","v":""}]
[]
[]
[]
[]
[]
[]
[null,null,null,null,null,null,null,null,null,null,null,null,null,null,null,null,null,null,null,null,null,null,null,null,null,null,null,null,null,null,null,null,null,null,null,null,null,null,null,null,null,null,null,null,null,null,null,null,null,null,null,null,null,null,null,null,null,null,null,null,null,null,null,null,null,null,null,null,null,null,null,null,null,null,null,null,null,null,null,null,null,null,null,null,null,null,null,null,null,null,null,null,null,null,null,null,null,null,null,null,{"$f":"IF(喪失者情報入力!D93=9,9,\"\")","v":""},null,null,null,{"$f":"IF(喪失者情報入力!D93=9,喪失者情報入力!H92,\"\")","v":""}]
[]
[]
[null,null,null,null,null,7,null,null,null,null,null,null,null,null,null,null,null,null,null,null,null,null,null,null,null,null,null,null,null,null,null,null,null,null,null,null,null,null,null,null,null,null,null,null,null,null,null,null,null,null,null,null,null,null,null,null,null,null,null,null,8]
[null,null,null,null,null,null,null,null,null,null,null,null,null,null,null,null,null,null,null,null,null,null,null,null,null,null,null,null,null,null,null,null,null,null,null,null,null,null,null,null,null,null,null,null,null,null,null,null,null,null,null,null,null,null,null,null,null,null,null,null,null,null,null,null,null,null,null,null,{"$f":"IF(ISTEXT(喪失者情報入力!D99),\"✔\",\"\")","v":""},null,null,null,"70歳以上被用者該当者"]
[null,null,null,null,null,null,null,null,null,null,null,null,null,null,null,null,{"$f":"IF(ISNUMBER(喪失者情報入力!D97),喪失者情報入力!D97,\"\")","v":""},null,null,null,null,{"$f":"IF(ISNUMBER(喪失者情報入力!D97),VLOOKUP(喪失者情報入力!D97,喪失者情報入力!G100:H102,2,0),\"\")","v":""}]
[null,null,null,null,null,"備考",null,null,null,null,null,null,null,null,null,null,null,null,null,null,null,null,null,null,null,null,null,null,null,null,null,null,null,null,null,null,null,null,null,null,null,null,null,null,null,null,null,null,null,null,null,null,null,null,null,null,null,null,null,null,"70歳\n不該当"]
[null,null,null,null,null,null,null,null,null,null,null,null,null,null,null,null,null,null,null,null,null,null,null,null,null,null,null,null,null,null,null,null,null,null,null,null,null,null,null,null,null,null,null,null,null,null,null,null,null,null,null,null,null,null,null,null,null,null,null,null,null,null,null,null,null,null,null,null,null,null,"(退職日又は死亡日を記入して下さい)"]
[]
[]
[null,null,null,null,null,null,null,null,null,null,null,null,null,null,null,null,null,null,null,null,null,{"$f":"IF(喪失者情報入力!D97=3,喪失者情報入力!D98,\"\")","v":""},null,null,null,null,null,null,null,null,null,null,null,null,null,null,null,null,null,null,null,null,null,null,null,null,null,null,null,null,null,null,null,null,null,null,null,null,null,null,null,null,null,null,null,null,null,"不該当\n年月日",null,null,null,null,null,null,{"$f":"IF(ISNUMBER(喪失者情報入力!D100),喪失者情報入力!D100,\"\")","v":""}]
[]
[]
[]
[]
[]
[]
[]
[]
["被保険者４",null,null,null,null,1,null,null,null,null,null,{"$f":"IF(ISTEXT(喪失者情報入力!D129),IF(ISTEXT(喪失者情報入力!D146),喪失者情報入力!D146,喪失者情報入力!D129),\"\")","v":""},null,null,null,null,null,null,null,null,null,null,2,null,null,null,null,null,"(ﾌﾘｶﾞﾅ)",null,null,null,null,null,null,null,{"$f":"IF(ISTEXT(喪失者情報入力!D131),喪失者情報入力!D131,\"\")","v":""},null,null,null,null,null,null,null,null,null,null,null,null,null,null,null,null,null,null,null,null,null,null,null,null,null,null,null,null,null,null,null,null,null,null,null,null,null,null,null,null,null,null,null,null,null,null,null,null,null,null,null,null,null,null,null,null,null,null,null,null,null,null,null,null,null,null,null,3,null,null,null,null,null,{"$f":"IF(ISNUMBER(喪失者情報入力!D132),喪失者情報入力!D132,\"\")","v":""}]
[]
[null,null,null,null,null,null,null,null,null,null,null,null,null,null,null,null,null,null,null,null,null,null,null,null,null,null,null,null,null,null,null,null,null,null,null,null,null,null,null,null,null,null,null,null,null,null,null,null,null,null,null,null,null,null,null,null,null,null,null,null,null,null,null,null,null,null,null,null,null,null,null,null,null,null,null,null,null,null,null,null,null,null,null,null,null,null,null,null,null,null,null,null,null,null,null,null,null,null,null,null,null,null,null,null,"生年\n月日"]
[null,null,null,null,null,"番号",null,null,null,null,null,null,null,null,null,null,null,null,null,null,null,null,"氏名"]
[]
[null,null,null,null,null,null,null,null,null,null,null,null,null,null,null,null,null,null,null,null,null,null,null,null,null,null,null,null,null,null,null,null,null,null,null,null,{"$f":"IF(ISTEXT(喪失者情報入力!D130),喪失者情報入力!D130,\"\")","v":""}]
[]
[]
[]
[]
[]
[]
[]
[null,null,null,null,null,4,null,null,null,null,null,null,{"$f":"IF(ISTEXT(喪失者情報入力!D133),MID(喪失者情報入力!D133,1,1),IF(ISTEXT(喪失者情報入力!D134),MID(喪失者情報入力!D134,1,1),\"\"))","v":""},null,null,null,{"$f":"IF(ISTEXT(喪失者情報入力!D133),MID(喪失者情報入力!D133,2,1),IF(ISTEXT(喪失者情報入力!D134),MID(喪失者情報入力!D134,2,1),\"\"))","v":""},null,null,null,{"$f":"IF(ISTEXT(喪失者情報入力!D133),MID(喪失者情報入力!D133,3,1),IF(ISTEXT(喪失者情報入力!D134),MID(喪失者情報入力!D134,3,1),\"\"))","v":""},null,null,null,{"$f":"IF(ISTEXT(喪失者情報入力!D133),MID(喪失者情報入力!D133,4,1),IF(ISTEXT(喪失者情報入力!D134),MID(喪失者情報入力!D134,4,1),\"\"))","v":""},null,null,null,{"$f":"IF(ISTEXT(喪失者情報入力!D133),MID(喪失者情報入力!D133,5,1),IF(ISTEXT(喪失者情報入力!D134),MID(喪失者情報入力!D134,5,1),\"\"))","v":""},null,null,null,{"$f":"IF(ISTEXT(喪失者情報入力!D133),MID(喪失者情報入力!D133,6,1),IF(ISTEXT(喪失者情報入力!D134),MID(喪失者情報入力!D134,6,1),\"\"))","v":""},null,null,null,{"$f":"IF(ISTEXT(喪失者情報入力!D133),MID(喪失者情報入力!D133,7,1),IF(ISTEXT(喪失者情報入力!D134),MID(喪失者情報入力!D134,7,1),\"\"))","v":""},null,null,null,{"$f":"IF(ISTEXT(喪失者情報入力!D133),MID(喪失者情報入力!D133,8,1),IF(ISTEXT(喪失者情報入力!D134),MID(喪失者情報入力!D134,8,1),\"\"))","v":""},null,null,null,{"$f":"IF(ISTEXT(喪失者情報入力!D133),MID(喪失者情報入力!D133,9,1),IF(ISTEXT(喪失者情報入力!D134),MID(喪失者情報入力!D134,9,1),\"\"))","v":""},null,null,null,{"$f":"IF(ISTEXT(喪失者情報入力!D133),MID(喪失者情報入力!D133,10,1),IF(ISTEXT(喪失者情報入力!D134),MID(喪失者情報入力!D134,10,1),\"\"))","v":""},null,null,null,{"$f":"IF(ISTEXT(喪失者情報入力!D133),MID(喪失者情報入力!D133,11,1),\"\")","v":""},null,null,null,{"$f":"IF(ISTEXT(喪失者情報入力!D133),MID(喪失者情報入力!D133,12,1),\"\")","v":""},null,null,null,5,null,null,null,null,null,null,{"$f":"IF(ISNUMBER(喪失者情報入力!D137),喪失者情報入力!D137,\"\")","v":""},null,null,null,null,null,null,null,null,null,null,null,null,null,null,null,null,null,null,null,null,null,null,null,null,null,6,null,null,null,null,null,null,{"$f":"IF(喪失者情報入力!D135=7,7,\"\")","v":""},null,null,null,{"$f":"IF(喪失者情報入力!D135=7,喪失者情報入力!H133,\"\")","v":""}]
[]
[]
[null,null,null,null,null,"個人\n番号\n(基礎年金番号)",null,null,null,null,null,null,null,null,null,null,null,null,null,null,null,null,null,null,null,null,null,null,null,null,null,null,null,null,null,null,null,null,null,null,null,null,null,null,null,null,null,null,null,null,null,null,null,null,null,null,null,null,null,null,"喪失\n年月日",null,null,null,null,null,null,null,null,null,null,null,null,null,null,null,null,null,null,null,null,null,null,null,null,null,null,null,null,null,null,null,null,"喪失\n(不該当)\n原因",null,null,null,null,null,null,{"$f":"IF(ISNUMBER(喪失者情報入力!D135),IF(OR(喪失者情報入力!D135=4,喪失者情報入力!D135=5),喪失者情報入力!D135,\"\"),\"\")","v":""},null,null,null,{"$f":"IF(ISNUMBER(喪失者情報入力!D135),IF(OR(喪失者情報入力!D135=4,喪失者情報入力!D135=5),VLOOKUP(喪失者情報入力!D135,喪失者情報入力!G131:H132,2,0),\"\"),\"\")","v":""},null,null,null,null,null,null,null,null,null,null,null,null,{"$f":"IF(OR(喪失者情報入力!D135=4,喪失者情報入力!D135=5),喪失者情報入力!D136,\"\")","v":""}]
[]
[]
[]
[]
[]
[]
[null,null,null,null,null,null,null,null,null,null,null,null,null,null,null,null,null,null,null,null,null,null,null,null,null,null,null,null,null,null,null,null,null,null,null,null,null,null,null,null,null,null,null,null,null,null,null,null,null,null,null,null,null,null,null,null,null,null,null,null,null,null,null,null,null,null,null,null,null,null,null,null,null,null,null,null,null,null,null,null,null,null,null,null,null,null,null,null,null,null,null,null,null,null,null,null,null,null,null,null,{"$f":"IF(喪失者情報入力!D135=9,9,\"\")","v":""},null,null,null,{"$f":"IF(喪失者情報入力!D135=9,喪失者情報入力!H134,\"\")","v":""}]
[]
[]
[null,null,null,null,null,7,null,null,null,null,null,null,null,null,null,null,null,null,null,null,null,null,null,null,null,null,null,null,null,null,null,null,null,null,null,null,null,null,null,null,null,null,null,null,null,null,null,null,null,null,null,null,null,null,null,null,null,null,null,null,8]
[null,null,null,null,null,null,null,null,null,null,null,null,null,null,null,null,null,null,null,null,null,null,null,null,null,null,null,null,null,null,null,null,null,null,null,null,null,null,null,null,null,null,null,null,null,null,null,null,null,null,null,null,null,null,null,null,null,null,null,null,null,null,null,null,null,null,null,null,{"$f":"IF(ISTEXT(喪失者情報入力!D141),\"✔\",\"\")","v":""},null,null,null,"70歳以上被用者該当者"]
[null,null,null,null,null,null,null,null,null,null,null,null,null,null,null,null,{"$f":"IF(ISNUMBER(喪失者情報入力!D139),喪失者情報入力!D139,\"\")","v":""},null,null,null,null,{"$f":"IF(ISNUMBER(喪失者情報入力!D139),VLOOKUP(喪失者情報入力!D139,喪失者情報入力!G142:H144,2,0),\"\")","v":""}]
[null,null,null,null,null,"備考",null,null,null,null,null,null,null,null,null,null,null,null,null,null,null,null,null,null,null,null,null,null,null,null,null,null,null,null,null,null,null,null,null,null,null,null,null,null,null,null,null,null,null,null,null,null,null,null,null,null,null,null,null,null,"70歳\n不該当"]
[null,null,null,null,null,null,null,null,null,null,null,null,null,null,null,null,null,null,null,null,null,null,null,null,null,null,null,null,null,null,null,null,null,null,null,null,null,null,null,null,null,null,null,null,null,null,null,null,null,null,null,null,null,null,null,null,null,null,null,null,null,null,null,null,null,null,null,null,null,null,"(退職日又は死亡日を記入して下さい)"]
[]
[]
[null,null,null,null,null,null,null,null,null,null,null,null,null,null,null,null,null,null,null,null,null,{"$f":"IF(喪失者情報入力!D139=3,喪失者情報入力!D140,\"\")","v":""},null,null,null,null,null,null,null,null,null,null,null,null,null,null,null,null,null,null,null,null,null,null,null,null,null,null,null,null,null,null,null,null,null,null,null,null,null,null,null,null,null,null,null,null,null,"不該当\n年月日",null,null,null,null,null,null,{"$f":"IF(ISNUMBER(喪失者情報入力!D142),喪失者情報入力!D142,\"\")","v":""}]